Cogmind - Beta 15 --- EXPLORER MODE // 2025.05.07 @ 23:21:46 // Winter2019/RPGLIKE Player: Agod Result: Defending 0bPrime! Performance ------------- Evolutions (8) 4000 Regions Visited (23) 4600 Robots Destroyed (780) 3900 Value Destroyed (49369) 49369 Prototype IDs (61) 1220 Alien Tech Used (2) 400 Bonus (51969) 51969 TOTAL SCORE: 115458 Bonus ------- High Alert Combat Kills 31621 Follower Combat Kills 1591 Registered with UFD 300 Met Optimus in HQ 500 Met Data Miner 300 Met Zhirov 300 Built Enhanced Grunts 300 A7 Reached Mainframe 300 Met R17 at Cetus 500 Met Optimus at Protoforge 1000 Completed Drillbomb Mission10000 Optimus Survived to 0b1 3000 Win 3000 Friendly Fire -743 Cogmind --------- Core Integrity 1800/1800 Matter 300/300 Energy 490/490 System Corruption 0% Temperature Cool (0) Movement Hovering (36) Location 0bPrime Parts ------- > --- POWER (3) -------- Light Antimatter Reactor Light Antimatter Reactor Improved Quantum Reactor > --- PROPULSION (6) --- Cooled Gravmag System Cooled Gravmag System Cooled Gravmag System Cooled Antigrav System Antigrav Array > --- UTILITY (10) ----- Advanced Signal Interpreter Experimental Core Analyzer Experimental Armor Integrity Analyzer Concept Recoil Nullifier Precision Matter Filter Kinecellerator Advanced Weapon Cycler Graphene Brace Improved Hardlight Generator Advanced Corruption Screen > --- WEAPON (4) ------- Helical Railgun Helical Railgun Concept XC Strikerail Concept XC Strikerail > --- INVENTORY (9) ---- Protomatter-98 Protomatter-83 Protomatter-81 Protomatter-78 Protomatter-76 Protomatter-74 Protomatter-74 Protomatter-43 Experimental Reaction Control System Peak State ------------ > --- POWER ------------ Light Antimatter Reactor Light Antimatter Reactor Light Antimatter Reactor > --- PROPULSION ------- Cooled Gravmag System Cooled Gravmag System Cooled Gravmag System Cooled Antigrav System Antigrav Array > --- UTILITY ---------- Deep Structural Scanner Advanced Signal Interpreter Experimental Core Analyzer Experimental Armor Integrity Analyzer Precision Matter Filter Kinecellerator Advanced Weapon Cycler Graphene Brace Improved Hardlight Generator Advanced Corruption Screen > --- WEAPON ----------- Concept XC Strikerail Concept XC Strikerail Sigix Broadsword > --- INVENTORY -------- Improved Cooling System Transdimensional Reconstructor Subatomic Replicator Advanced Plasma Cannon Omega Cannon Z-bomb Delivery System [Rating: 196] Favorites ----------- Power Light Antimatter Reactor Engine F-cell Engine Power Core Light Fission Core Reactor Light Antimatter Reactor Propulsion Cooled Gravmag System Leg Armored Leg Hover Unit Cooled Gravmag System Utility Kinecellerator Device Kinecellerator Storage High-capacity Matter Pod Processor Advanced Signal Interpreter Hackware System Mapper Protection Light Armor Plating Weapon Hypervelocity Gauss Rifle Energy Gun Improved Medium Laser Energy Cannon Advanced Plasma Cannon Ballistic Gun Hypervelocity Gauss Rifle Ballistic Cannon Omega Cannon Launcher Rocket Launcher Impact Weapon Hammer Slashing Weapon Power Sword Build | -11 -10 -10 -9 -9 -6 -6 -6 -6 -5 -5 -5 -5 -5 -4 -4 -4 -4 -4 -3 -3 -2 -2 -2 ------- Run | Yrd Mat Sub Rec Scr Fac Low Low Dat Pro Fac Upp Upp Zhi Pro Fac Ext Cet Arc Res Tes Res Qua Frg Slots Evolved 19 | 3 . 3 1 . 6 . . . 1 1 . . . . . . 1 . 1 . 1 1 . Power 2 | . . . . . 2 . . . . . . . . . . . . . . . . . . Propulsion 5 | 1 . 1 . . 1 . . . . . . . . . . . 1 . . . 1 . . Utility 9 | 1 . 2 1 . 3 . . . 1 1 . . . . . . . . . . . . . Weapon 3 | 1 . . . . . . . . . . . . . . . . . . 1 . . 1 . Parts Attached 113 | 7 5 4 2 9 26 1 . . 2 13 . . 6 2 6 5 1 . . 8 . 2 14 Power 19 | 1 . . . 1 6 . . . . 4 . . 1 2 . 2 . . . . . . 2 Engine 5 | 1 . . . 1 2 . . . . 1 . . . . . . . . . . . . . Core 8 | . . . . . 4 . . . . 3 . . . 1 . . . . . . . . . Reactor 6 | . . . . . . . . . . . . . 1 1 . 2 . . . . . . 2 Propulsion 26 | 2 . 1 . 3 5 . . . 1 4 . . 3 . 5 . . . . 1 . . 1 Treads . | . . . . . . . . . . . . . . . . . . . . . . . . Leg 16 | 2 . 1 . 3 5 . . . 1 4 . . . . . . . . . . . . . Wheel . | . . . . . . . . . . . . . . . . . . . . . . . . Hover 10 | . . . . . . . . . . . . . 3 . 5 . . . . 1 . . 1 Flight . | . . . . . . . . . . . . . . . . . . . . . . . . Utility 44 | 2 1 2 2 4 12 1 . . 1 4 . . 2 . 1 1 . . . 4 . . 7 Device 25 | . 1 . 1 2 9 . . . 1 2 . . 2 . 1 1 . . . 2 . . 3 Storage 2 | . . 1 1 . . . . . . . . . . . . . . . . . . . . Processor 11 | 1 . . . 1 2 . . . . 2 . . . . . . . . . 1 . . 4 Hackware 1 | . . . . . . . . . . . . . . . . . . . . 1 . . . Protection 5 | 1 . 1 . 1 1 1 . . . . . . . . . . . . . . . . . Artifact . | . . . . . . . . . . . . . . . . . . . . . . . . Weapon 24 | 2 4 1 . 1 3 . . . . 1 . . . . . 2 1 . . 3 . 2 4 Energy Gun 4 | 1 2 1 . . . . . . . . . . . . . . . . . . . . . Energy Cannon 1 | . . . . . . . . . . 1 . . . . . . . . . . . . . Ballistic Gun 8 | 1 . . . 1 . . . . . . . . . . . 1 1 . . . . . 4 Ballistic Cannon 4 | . . . . . . . . . . . . . . . . 1 . . . 2 . 1 . Launcher 3 | . 1 . . . 1 . . . . . . . . . . . . . . 1 . . . Special Weapon . | . . . . . . . . . . . . . . . . . . . . . . . . Impact Weapon 1 | . 1 . . . . . . . . . . . . . . . . . . . . . . Slashing Weapon 3 | . . . . . 2 . . . . . . . . . . . . . . . . 1 . Piercing Weapon . | . . . . . . . . . . . . . . . . . . . . . . . . Special Melee Weapon . | . . . . . . . . . . . . . . . . . . . . . . . . Unidentified Prototypes 27 | . 1 . . . 2 1 . . . . . . 4 . . . 1 . . 6 . 2 10 Parts Lost 4 | . . . . . 1 . . . . . . . . . . . . . . 1 . . 2 Power . | . . . . . . . . . . . . . . . . . . . . . . . . Propulsion . | . . . . . . . . . . . . . . . . . . . . . . . . Utility 2 | . . . . . . . . . . . . . . . . . . . . 1 . . 1 Weapon 2 | . . . . . 1 . . . . . . . . . . . . . . . . . 1 Highest Loss Streak 1 | . . . . . 1 . . . . . . . . . . . . . . 1 . . 1 To Critical Strikes . | . . . . . . . . . . . . . . . . . . . . . . . . Average Backups 5 | . 3 4 3 3 6 7 7 7 6 5 6 7 7 7 6 7 6 6 5 6 5 5 2 Power . | . 1 1 1 . . . . . . . 1 1 . . . . . . . . . . . Propulsion . | . 1 1 . . . . . . . . . . . . . 1 . . . . . . . Utility 1 | . . . . . 2 4 4 5 4 2 2 3 3 2 1 1 1 1 1 1 1 1 . Weapon 1 | . . 2 2 1 1 1 1 1 1 1 2 2 2 2 3 4 4 4 3 3 3 3 . Tool/Special . | . . . . . . . . . . . . . . . . . . . . . . . . Unused Backups 29 | . 1 2 . 2 4 . 1 . . 2 . . 1 1 3 . . . . 2 . . 10 Power 1 | . . . . 1 . . . . . . . . . . . . . . . . . . . Propulsion 3 | . . 1 . . . . . . . . . . . . . . . . . . . . 2 Utility 11 | . 1 . . . 1 . . . . 1 . . 1 1 1 . . . . 1 . . 4 Weapon 10 | . . 1 . 1 3 . . . . 1 . . . . 1 . . . . 1 . . 2 Tool/Special 4 | . . . . . . . 1 . . . . . . . 1 . . . . . . . 2 Average Slot Usage (%) 95 | . 99 86 89 98 97 99 100 100 100 99 100 100 92 94 97 100 100 100 100 92 90 86 93 Engine 5 | . 14 10 9 9 7 5 5 5 5 4 5 5 5 5 5 2 . . . . . . . Core 3 | . . . . . 7 11 11 11 11 10 10 10 10 9 5 1 . . . . . . . Reactor 4 | . . . . . . . . . . . . . . . 5 10 15 15 14 14 13 13 12 Leg 13 | . 28 22 28 27 19 23 23 23 22 21 21 21 13 . . . . . . . . . . Hover 8 | . . . . . . . . . . . . . 5 15 18 21 24 25 23 20 21 21 21 Device 30 | . 3 10 14 18 37 40 41 41 41 42 42 42 41 42 41 42 40 40 38 33 31 30 23 Storage 2 | . . 9 9 10 1 . . . . . . . . . . . . . . . . . . Processor 9 | . 10 . . 6 6 5 5 5 5 8 10 10 10 10 10 10 10 10 9 13 13 13 19 Protection 2 | . 14 10 9 8 1 . . . . . . . . . . . . . . . . . . Energy Gun 3 | . 18 20 18 9 . . . . . . . . . . . . . . . . . . . Ballistic Gun 6 | . 8 . . 8 5 5 5 5 5 4 5 5 . 5 4 8 9 10 9 . . . 14 Slashing Weapon 2 | . . . . . 5 5 5 5 4 4 5 5 5 4 5 . . . 3 4 4 4 . Peak Build Rating 196 | 7 11 16 18 33 84 84 84 84 90 109 108 108 108 109 118 120 128 125 129 152 159 183 196 Average Rating 96 | 4 8 12 17 27 71 83 84 84 84 97 107 108 103 106 111 118 124 125 128 144 158 177 186 On Entrance 89 | . 7 10 16 18 33 84 84 84 84 90 107 108 108 107 109 118 119 125 125 129 152 159 183 Naked Turns . | . . . . . . . . . . . . . . . . . . . . . . . . Heaviest Build 90 | 12 16 32 33 36 58 55 55 55 58 70 67 67 71 73 74 77 73 73 76 83 83 90 90 Greatest Support 107 | 20 20 30 35 46 72 72 72 72 77 85 85 85 85 48 65 65 77 77 77 79 91 106 107 Greatest Overweight (x) 3 | 1 . 1 1 . 1 . . . . . . . 3 1 1 1 1 . . 1 1 . . Average Overweight (x) . | . . . . . . . . . . . . . . 1 . 1 . . . . . . . Largest Inventory Capacity 9 | 5 5 5 5 6 7 7 7 7 7 7 7 7 7 7 7 7 7 7 7 7 7 7 9 Average Capacity 6 | 5 5 5 5 5 6 7 7 7 7 7 7 7 7 7 7 7 7 7 7 7 7 7 7 Most Carried 9 | 1 5 5 4 6 7 7 7 7 7 7 7 7 7 7 7 7 7 6 6 7 7 7 9 Average Carried 5 | . 3 4 3 4 6 7 7 7 6 5 6 7 6 6 6 7 6 6 5 6 6 6 5 Final Capacity 9 | 5 5 5 5 6 7 7 7 7 7 7 7 7 7 7 7 7 7 7 7 7 7 7 9 Final Carried 9 | 1 5 3 4 6 7 7 7 7 6 6 7 7 7 7 7 7 6 6 5 7 7 7 9 Class Distribution -------------------- 42% | Hacker-Assassin 29% | Hacker-Mutant 15% | Scavenger-Scout 8% | Hacker-Scout 4% | Hacker-Skirmisher Dominant Class ---------------- Hacker-Mutant | -10/Materials Hacker-Mutant | -10/Subcaves Hacker-Mutant | -9/Recycling Hacker-Mutant | -9/Scraptown Hacker-Assassin | -6/Factory Hacker-Assassin | -6/Lower Caves Hacker-Assassin | -6/Lower Caves Hacker-Assassin | -6/Data Miner Hacker-Assassin | -5/Proximity Caves Hacker-Assassin | -5/Factory Hacker-Assassin | -5/Upper Caves Hacker-Assassin | -5/Upper Caves Hacker-Assassin | -5/Zhirov Hacker-Assassin | -4/Proximity Caves Hacker-Assassin | -4/Factory Hacker-Skirmisher | -4/Extension Hacker-Scout | -4/Cetus Hacker-Scout | -4/Archives Hacker-Scout | -3/Research Hacker-Assassin | -3/Testing Hacker-Scout | -2/Research Hacker-Scout | -2/Quarantine Scavenger-Scout | -2/Protoforge Resources | -11 -10 -10 -9 -9 -6 -6 -6 -6 -5 -5 -5 -5 -5 -4 -4 -4 -4 -4 -3 -3 -2 -2 -2 ----------- Run | Yrd Mat Sub Rec Scr Fac Low Low Dat Pro Fac Upp Upp Zhi Pro Fac Ext Cet Arc Res Tes Res Qua Frg Matter Collected 11503 | 178 239 336 258 60 1094 455 90 . 148 1052 94 . 124 569 274 475 134 . 134 367 220 97 5105 Remotely . | . . . . . . . . . . . . . . . . . . . . . . . . Salvage Created 43515 | . 588 356 292 . 1869 746 224 . 212 2506 . . . 1777 1786 1967 724 . 246 504 422 278 29018 Parts 1909 | . 36 30 8 . 95 34 7 . 13 143 . . . 103 72 95 38 8 13 35 12 14 1153 Haulers Intercepted 1 | . 1 . . . . . . . . . . . . . . . . . . . . . . Recyclers Shooed 12 | . 1 . . . 4 . . . . 4 . . . . 1 2 . . . . . . . Parts Field Recycled . | . . . . . . . . . . . . . . . . . . . . . . . . Retrieved Matter . | . . . . . . . . . . . . . . . . . . . . . . . . Parts Self-Destructed . | . . . . . . . . . . . . . . . . . . . . . . . . Prevented . | . . . . . . . . . . . . . . . . . . . . . . . . Kills | -11 -10 -10 -9 -9 -6 -6 -6 -6 -5 -5 -5 -5 -5 -4 -4 -4 -4 -4 -3 -3 -2 -2 -2 ------- Run | Yrd Mat Sub Rec Scr Fac Low Low Dat Pro Fac Upp Upp Zhi Pro Fac Ext Cet Arc Res Tes Res Qua Frg Combat Hostiles Destroyed 696 | . 10 12 3 . 18 11 2 . 5 44 . . . 22 11 19 8 2 3 14 9 6 497 Melee 45 | . . . . . 2 1 . . 1 23 . . . 1 3 2 . . . . 3 3 6 Guns 612 | . 10 8 3 . 16 10 2 . 4 17 . . . 21 8 17 8 2 3 . . . 483 Cannons 30 | . . . . . . . . . . . . . . . . . . . . 14 6 3 7 AOE 9 | . . 4 . . . . . . . 4 . . . . . . . . . . . . 1 Classes Destroyed 29 | . 6 3 . . 3 1 . . 2 4 . . . 1 . . . . . 2 . . 7 Worker 22 | . 5 . . . 6 . . . . 4 . . . . 6 . . . . . 1 . . Builder 10 | . . . . . . . . . . 3 . . . 2 1 3 . . . 1 . . . Tunneler 4 | . . . . . . . . . . 1 . . . . 1 1 . . 1 . . . . Hauler 1 | . 1 . . . . . . . . . . . . . . . . . . . . . . Recycler 15 | . 1 . 3 . 3 . . . . 2 . . . 1 3 2 . . . . . . . Carrier 2 | . . . . . . . . . . . . . . . . . . . . . . . 2 Minesweeper 2 | . . . . . . 1 1 . . . . . . . . . . . . . . . . Mechanic 25 | . . . . . 1 . . . . . . . . . . . . . . . . . 24 Operator 5 | . . . . . . . . . . 1 . . . . . 1 . . . 1 . 1 1 Drone 43 | . . . . . . . . . 2 . . . . . . . . . . . . . 41 Turret 2 | . . 2 . . . . . . . . . . . . . . . . . . . . . Watcher 26 | . 3 . . . 1 . . . . 3 . . . 2 3 2 2 . 1 3 1 1 4 Swarmer 98 | . 4 4 . . 1 2 . . . 9 . . . 2 . 3 . . 2 . 3 4 64 Saboteur 21 | . . . . . . . . . . . . . . . . . . . . . . . 21 Grunt 133 | . 6 . . . 8 8 2 . . 22 . . . 8 5 8 . . . 2 1 2 61 Brawler 25 | . . . . . 1 1 . . . . . . . 1 . . . . . . . . 22 Duelist 23 | . . . . . . . . . . 2 . . . 1 . . . . . . . . 20 Protector 28 | . . . . . . . . . . . . . . 1 . . . . . . . . 27 Researcher 1 | . . . . . . . . . . . . . . . . . . . . 1 . . . Sentry 33 | . . 1 3 . 4 . . . . 1 . . . 5 4 4 . 2 1 2 3 . 3 Demolisher 1 | . . . . . . . . . . . . . . . . . . . . . . . 1 Specialist 8 | . . . . . . . . . . . . . . . . . . . . 3 . . 5 Hunter 70 | . . . . . . . . . 2 . . . . 4 . 4 2 . . . 2 . 56 Programmer 71 | . . . . . 4 . . . 1 10 . . . . 2 . . . . 7 . . 47 Cetus Guard 6 | . . . . . . . . . . . . . . . . . 6 . . . . . . Hotshot 3 | . . . . . . . . . . . . . . . . . . . . . . . 3 Striker 62 | . . . . . . . . . . . . . . . . . . . . . . . 62 Executioner 62 | . . . . . . . . . . . . . . . . . . . . . . . 62 Subdweller 7 | . . 7 . . . . . . . . . . . . . . . . . . . . . Elite 1 | . . . . . . . . . . . . . . . . . . . . . . . 1 Scrapoid 4 | . . . . . . . . . . . . . . . . . . . . . . . 4 Decomposer 1 | . . . . . . 1 . . . . . . . . . . . . . . . . . Best Kill Streak 38 | . 7 5 2 . 7 3 1 . 1 9 . . . 5 9 7 5 2 4 5 3 5 38 Combat Bots Only 36 | . 4 3 1 . 5 3 1 . 1 5 . . . 4 5 5 4 2 2 5 3 4 36 Max Kills in Single Turn 9 | . 1 3 1 . 2 1 1 . 1 9 . . . 2 1 3 2 1 1 1 1 1 4 Gunslinging 2 | . . . . . . . . . . . . . . . . . 1 . . . . . 2 Exploded 3 | . . 3 . . . . . . . 3 . . . . . . . . . . . . 1 Melee 1 | . . . . . 1 1 . . 1 1 . . . 1 1 1 . . . . 1 1 1 Uniques/NPCs Destroyed . | . . . . . . . . . . . . . . . . . . . . . . . . Combat | -11 -10 -10 -9 -9 -6 -6 -6 -6 -5 -5 -5 -5 -5 -4 -4 -4 -4 -4 -3 -3 -2 -2 -2 -------- Run | Yrd Mat Sub Rec Scr Fac Low Low Dat Pro Fac Upp Upp Zhi Pro Fac Ext Cet Arc Res Tes Res Qua Frg Hostile Shots Fired 3279 | . 35 87 20 . 136 74 10 . 81 366 . . . 97 135 77 15 2 21 31 61 58 1973 Missed 1184 | . 11 34 3 . 56 22 3 . 28 107 . . . 42 47 21 4 1 3 10 17 25 750 Hits 2095 | . 24 53 17 . 80 52 7 . 53 259 . . . 55 88 56 11 1 18 21 44 33 1223 Melee 23 | . . . . . . . . . . 10 . . . 3 . . . . . . . . 10 Projectile 2072 | . 24 53 17 . 80 52 7 . 53 249 . . . 52 88 56 11 1 18 21 44 33 1213 AOE 5 | . . 3 . . . . . . . . . . . . . . . . . . . . 2 Critical Strikes 107 | . . . 2 . 1 . 2 . 2 17 . . . 4 6 3 3 . . . 6 . 61 Actively Blocked 76 | . . . . . . . . . . . . . . . 3 3 3 . . . 6 . 61 Part Disruptions 1 | . . . . . . . . . . 1 . . . . . . . . . . . . . Damage Taken 12238 | . 154 391 128 . 492 142 26 . 131 1888 . . . 166 270 215 50 10 76 93 180 144 7682 Core 9375 | . 101 269 72 . 349 109 20 . 97 1463 . . . 126 191 166 41 8 53 69 132 112 5997 Absorbed by Shields 10105 | . . . . . 36 297 42 . 250 1004 . . . 272 435 284 46 . 130 104 240 198 6767 Redirected to Core 7931 | . 79 156 49 . 305 90 18 . 89 1353 . . . 99 163 132 32 8 43 69 124 87 5035 Ignored by Resistances 26873 | . 104 294 118 . 494 495 75 . 666 2892 . . . 640 929 791 187 19 349 187 504 432 17697 Regen/Repaired (Parts) 245 | . . . . 162 . . . . . . . . . . . . . . . . . 15 68 Core Remaining (%) 100 | 100 . . . 100 . . . . 100 . . . . 100 . . . 100 . 100 . . 100 Volleys Fired 1547 | . 43 66 18 . 94 85 18 . 31 141 . . . 130 79 94 25 12 19 38 20 5 629 Largest 4 | . 2 2 2 . 2 1 1 . 2 1 . . . 1 1 2 2 2 2 2 1 1 4 Hottest 140 | . 112 112 112 . 89 33 33 . 72 98 . . . 39 98 90 98 68 68 100 100 100 140 Shots Fired 3389 | . 83 96 36 . 95 85 18 . 32 142 1 . . 130 79 172 46 24 38 41 20 5 2246 Gun 3236 | . 80 85 36 . 94 85 18 . 30 132 1 . . 126 72 151 42 24 38 6 . . 2216 Cannon 130 | . . . . . . . . . . 10 . . . . 7 21 4 . . 35 20 5 28 Launcher 23 | . 3 11 . . 1 . . . 2 . . . . 4 . . . . . . . . 2 Special . | . . . . . . . . . . . . . . . . . . . . . . . . Kinetic 3181 | . 39 . . . 92 85 18 . 30 132 1 . . 126 72 172 42 24 38 41 20 5 2244 Thermal 185 | . 41 85 36 . 2 . . . . 10 . . . . 7 . 4 . . . . . . Explosive 23 | . 3 11 . . 1 . . . 2 . . . . 4 . . . . . . . . 2 Electromagnetic . | . . . . . . . . . . . . . . . . . . . . . . . . Robot Hit Streak 101 | . 21 20 11 . 25 40 15 . 18 18 . . . 33 35 60 63 30 20 28 23 27 101 Robot Miss Streak 3 | . 2 1 2 . 1 1 2 . 2 2 . . . 1 2 1 1 1 1 1 . . 3 Penetration Max 3 | . . . . . 2 2 . . . 2 . . . 2 3 3 1 1 1 . . . 2 Secondary Targets 236 | . 4 . . . . . . . . . . . . . . 3 2 . . . . . 227 Max Gunslinging Chain 3 | . 1 . . . . . . . . . . . . . . 1 1 . . . . . 3 Shots Hit Robots 3026 | . 64 58 26 . 94 80 20 . 26 181 . . . 121 81 163 37 22 35 37 21 13 1947 Core Hits 1497 | . 30 22 9 . 53 41 7 . 11 82 . . . 67 42 64 19 8 11 13 10 7 1001 Critical Kills 239 | . . . . . 21 9 3 . 3 21 . . . 24 15 24 10 2 4 . . . 103 Critical Parts Destroyed 264 | . . . . . 19 14 3 . 8 30 . . . 25 14 36 9 6 1 1 . . 98 Critical Strikes 586 | . 3 5 1 . 44 25 8 . 11 64 . . . 50 36 64 23 11 10 9 2 1 219 Burn 9 | . 3 5 1 . . . . . . . . . . . . . . . . . . . . Destroy 536 | . . . . . 42 25 6 . 11 51 . . . 50 32 63 23 11 10 1 . . 211 Blast 17 | . . . . . . . . . . . . . . . . . . . . 8 2 1 6 Sever 24 | . . . . . 2 . 2 . . 13 . . . . 4 1 . . . . . . 2 Melee Attacks 312 | . 1 . . . 32 8 5 . 2 110 . . . 18 35 10 . . 2 15 23 18 33 Impact 1 | . 1 . . . . . . . . . . . . . . . . . . . . . . Slashing 311 | . . . . . 32 8 5 . 2 110 . . . 18 35 10 . . 2 15 23 18 33 Piercing . | . . . . . . . . . . . . . . . . . . . . . . . . Sneak Attacks 30 | . . . . . 5 1 . . . 4 . . . 1 10 1 . . . 1 1 1 5 Combat Hostiles 2 | . . . . . . . . . . . . . . . 1 . . . . . . 1 . Follow-up Attacks . | . . . . . . . . . . . . . . . . . . . . . . . . Damage Inflicted 116665 | . 823 1194 459 . 1397 1049 339 . 217 5630 . . . 1754 1808 2790 353 224 407 3882 2339 1434 90566 Guns 94620 | . 823 870 459 . 858 672 112 . 170 961 . . . 1014 648 1409 353 224 349 44 . . 85654 Cannons 9865 | . . . . . . . . . . . . . . . . 1008 . . . 3705 2063 568 2521 Explosions 2099 | . . 324 . . . . . . . 1234 . . . 282 . . . . 22 . . . 237 Melee 10081 | . . . . . 539 377 227 . 47 3435 . . . 458 1160 373 . . 36 133 276 866 2154 Ramming . | . . . . . . . . . . . . . . . . . . . . . . . . Kinetic 102682 | . 367 . . . 840 672 112 . 170 961 . . . 1014 648 2417 353 224 349 3749 2063 568 88175 Thermal 3037 | . 456 870 459 . 18 . . . . 1234 . . . . . . . . . . . . . Explosive 865 | . . 324 . . . . . . . . . . . 282 . . . . 22 . . . 237 Electromagnetic . | . . . . . . . . . . . . . . . . . . . . . . . . Impact . | . . . . . . . . . . . . . . . . . . . . . . . . Slashing 10081 | . . . . . 539 377 227 . 47 3435 . . . 458 1160 373 . . 36 133 276 866 2154 Piercing . | . . . . . . . . . . . . . . . . . . . . . . . . Highest Corruption 9 | . . . . . 1 . . . . 9 5 5 5 5 . . . . . 1 . . . Average Corruption 3 | . . . . . 1 . . . . 4 5 5 5 5 . . . . . 1 . . . Corruption Purged 6 | . . . . . 1 . . . . 5 . . . . . . . . . . . . . Corruption Blocked 8 | . . . . . . . . . . . . . . . . . . . . 1 2 . 5 Effects 81 | . . . . . 2 . . . . 32 11 3 3 22 . . . . . 8 . . . Message Errors 15 | . . . . . . . . . . 7 1 1 1 4 . . . . . 1 . . . Matter Fused 25 | . . . . . . . . . . 8 4 . 2 9 . . . . . 2 . . . Heat Flow Errors 11 | . . . . . 1 . . . . 6 2 . . . . . . . . 2 . . . Energy Discharges 9 | . . . . . 1 . . . . 3 2 . . 3 . . . . . . . . . Parts Rejected 1 | . . . . . . . . . . 1 . . . . . . . . . . . . . Data Loss (minor) 9 | . . . . . . . . . . 3 . 1 . 4 . . . . . 1 . . . Data Loss (major) 6 | . . . . . . . . . . 2 . . . 2 . . . . . 2 . . . Misfires 2 | . . . . . . . . . . 1 1 . . . . . . . . . . . . Alerts 3 | . . . . . . . . . . 1 1 1 . . . . . . . . . . . Overload Shots . | . . . . . . . . . . . . . . . . . . . . . . . . Overflow Damage 3404 | . . 11 . . 117 38 38 . . 417 . . . 45 250 16 . . 6 1207 165 210 884 Projectiles 1952 | . . . . . . . . . . . . . . . . . . . . 1151 93 120 588 Explosions 309 | . . 11 . . . . . . . 217 . . . . . . . . . . . . 81 Melee 1143 | . . . . . 117 38 38 . . 200 . . . 45 250 16 . . 6 56 72 90 215 Knockbacks 21 | . . . . . . . . . . . . . . . . . . . . 8 2 1 10 Impact . | . . . . . . . . . . . . . . . . . . . . . . . . Kinetic 20 | . . . . . . . . . . . . . . . . . . . . 8 1 1 10 Secondary 1 | . . . . . . . . . . . . . . . . . . . . . 1 . . Self-Inflicted Damage 57 | . 5 3 . . . . . . . 49 . . . . . . . . . . . . . Shots 4 | . 1 1 . . . . . . . 2 . . . . . . . . . . . . . Rammed . | . . . . . . . . . . . . . . . . . . . . . . . . Targets Rammed . | . . . . . . . . . . . . . . . . . . . . . . . . Kicked . | . . . . . . . . . . . . . . . . . . . . . . . . Crushed . | . . . . . . . . . . . . . . . . . . . . . . . . Highest Temperature 266 | . 186 9 16 . 125 4 5 . 6 266 153 . . . 90 . 104 . . 170 122 20 28 Average Temperature 34 | . 46 5 10 . 25 3 5 . 5 61 67 . . . 54 . 65 . . 38 49 16 5 Received Heat Transfer 1812 | . 81 213 108 . 231 123 15 . 56 315 . . . 51 103 55 . . 19 4 40 6 392 Siege Activations . | . . . . . . . . . . . . . . . . . . . . . . . . Martial Activations . | . . . . . . . . . . . . . . . . . . . . . . . . Shielding Activations . | . . . . . . . . . . . . . . . . . . . . . . . . Robots Disrupted . | . . . . . . . . . . . . . . . . . . . . . . . . Combat Hostiles . | . . . . . . . . . . . . . . . . . . . . . . . . Robots Corrupted . | . . . . . . . . . . . . . . . . . . . . . . . . Combat Hostiles . | . . . . . . . . . . . . . . . . . . . . . . . . Parts Fried 4 | . . . . . . . 3 . . . . . . . . 1 . . . . . . . Impact Corruptions . | . . . . . . . . . . . . . . . . . . . . . . . . Robots Melted . | . . . . . . . . . . . . . . . . . . . . . . . . Combat Hostiles . | . . . . . . . . . . . . . . . . . . . . . . . . Parts Melted 12 | . 1 1 3 . 1 . . . . 2 . . . . . . . . . . . . 4 Heat Transferred 5597 | . 1517 2257 1036 . 37 . . . . 750 . . . . . . . . . . . . . Parts Sabotaged . | . . . . . . . . . . . . . . . . . . . . . . . . Parts Stolen . | . . . . . . . . . . . . . . . . . . . . . . . . Parts Stripped . | . . . . . . . . . . . . . . . . . . . . . . . . Power Chain Reactions . | . . . . . . . . . . . . . . . . . . . . . . . . Alert | -11 -10 -10 -9 -9 -6 -6 -6 -6 -5 -5 -5 -5 -5 -4 -4 -4 -4 -4 -3 -3 -2 -2 -2 ------- Run | Yrd Mat Sub Rec Scr Fac Low Low Dat Pro Fac Upp Upp Zhi Pro Fac Ext Cet Arc Res Tes Res Qua Frg Maximum Alert Level 5 | . . . . . . . . . . 1 . . . . . . 1 . 1 . 1 . 5 Low Security (%) 74 | 100 100 . 100 . 100 . . . . 85 . . . . 100 100 98 100 71 100 88 100 12 Level 1 3 | . . . . . . . . . . 14 . . . . . . 2 . 28 . 11 . 1 Level 2 1 | . . . . . . . . . . . . . . . . . . . . . . . 6 Level 3 1 | . . . . . . . . . . . . . . . . . . . . . . . 4 Level 4 1 | . . . . . . . . . . . . . . . . . . . . . . . 4 Level 5 17 | . . . . . . . . . . . . . . . . . . . . . . . 69 High Security . | . . . . . . . . . . . . . . . . . . . . . . . . Max Security . | . . . . . . . . . . . . . . . . . . . . . . . . Peak Influence 8857 | . 127 . 40 . 161 . . . . 302 . . . . 107 145 203 106 282 128 306 150 8857 Initial 300 | . . . 24 . . . . . . 300 . . . . 12 33 12 27 19 112 3 122 33 Average 1079 | . 25 . 5 . 15 . . . . 79 . . . . 19 27 120 74 140 33 71 58 4070 Influence Increases 19905 | . 346 170 211 . 717 265 70 . 105 1947 . . . 613 499 718 286 134 353 631 633 285 11922 Destroy 0b10 Robot/C 13000 | . 200 140 60 . 360 220 40 . 60 880 . . . 500 220 440 200 80 120 420 200 120 8740 Destroy 0b10 Robot/NC 940 | . 50 . 15 . 55 5 5 . 10 70 . . . 45 70 55 10 . 15 25 10 10 490 Destroy Leader 2080 | . 48 . . . 112 10 10 . 20 146 . . . 30 56 74 10 . 44 56 52 12 1400 Allied During Kill 329 | . . . . . . . . . . . . . . 23 1 84 60 24 53 33 . . 51 Trap Triggered on 0b10 20 | . . . . . . . . . . 20 . . . . . . . . . . . . . Successful Hack 467 | . 38 . 15 . 87 . . . . 69 . . . . 16 33 6 . 18 25 77 18 65 Select Force Hacks 120 | . . . 120 . . . . . . . . . . . . . . . . . . . . Disable Machine 216 | . . . . . 4 . . . . 76 . . . . . 8 . 4 4 28 . 20 72 Destroy Structure 1323 | . 10 . 1 . 39 . . . . 176 . . . . 46 24 . 26 84 44 69 15 789 Advance Influence 300 | . . . . . . . . . . 300 . . . . . . . . . . . . . Partial Spotted 60 | . . . . . . . . . . 15 . . . . . . . . . . 30 15 . Lose Combat Pursuer 1050 | . . 30 . . 60 30 15 . 15 195 . . . 15 90 . . . 15 . 195 75 315 Influence Decreases 11168 | . 346 100 281 . 716 266 70 . 105 1727 220 . . 588 430 782 218 156 162 889 351 497 3264 Entered New Map 758 | . . . 46 . . 1 . . . . 115 . . . 13 61 18 71 57 155 6 169 46 Time Decay 9523 | . 346 100 235 . 690 265 70 . 105 1570 105 . . 485 410 547 180 45 105 564 285 328 3088 Lost Part 40 | . . . . . 10 . . . . . . . . . . . . . . 10 . . 20 Lost Ally 553 | . . . . . 10 . . . . 5 . . . 103 7 38 20 40 . 160 60 . 110 Purge Threat 294 | . . . . . 6 . . . . 152 . . . . . 136 . . . . . . . Squads Dispatched 71 | . . . . . 17 . . . . 11 . . . 3 11 3 1 . . 7 3 1 14 Investigation 41 | . . . . . 9 . . . . 7 . . . 1 7 2 1 . . 4 1 . 9 Extermination 20 | . . . . . 4 . . . . 4 . . . . 4 . . . . 3 2 1 2 Reinforcement 7 | . . . . . 1 . . . . . . . . 2 . 1 . . . . . . 3 Assault . | . . . . . . . . . . . . . . . . . . . . . . . . Garrison 3 | . . . . . 3 . . . . . . . . . . . . . . . . . . Intercept . | . . . . . . . . . . . . . . . . . . . . . . . . Searches Triggered . | . . . . . . . . . . . . . . . . . . . . . . . . Construction Impeded 3 | . . . . . . . . . . . . . . 2 . 1 . . . . . . . Haulers Reinforced . | . . . . . . . . . . . . . . . . . . . . . . . . Active Scanning Responses . | . . . . . . . . . . . . . . . . . . . . . . . . Cargo Convoy Interrupts . | . . . . . . . . . . . . . . . . . . . . . . . . Stealth | -11 -10 -10 -9 -9 -6 -6 -6 -6 -5 -5 -5 -5 -5 -4 -4 -4 -4 -4 -3 -3 -2 -2 -2 --------- Run | Yrd Mat Sub Rec Scr Fac Low Low Dat Pro Fac Upp Upp Zhi Pro Fac Ext Cet Arc Res Tes Res Qua Frg Distress Signals 29 | . 1 . . . 2 . . . 2 5 . . . 1 1 2 2 . 1 1 2 . 9 Communications Jammed . | . . . . . . . . . . . . . . . . . . . . . . . . Distress Signals . | . . . . . . . . . . . . . . . . . . . . . . . . Times Spotted 1062 | . 13 13 3 . 24 14 3 . 6 72 . . . 26 31 25 10 6 8 22 26 14 746 Peak Tracking Total 17 | . 3 5 1 . 8 4 2 . 2 8 . . . 5 7 6 5 2 3 4 8 6 17 Tactical Retreats 38 | . . 1 . . 2 2 1 . 1 10 . . . 1 2 . . . 1 . 4 2 11 Traps | -11 -10 -10 -9 -9 -6 -6 -6 -6 -5 -5 -5 -5 -5 -4 -4 -4 -4 -4 -3 -3 -2 -2 -2 ------- Run | Yrd Mat Sub Rec Scr Fac Low Low Dat Pro Fac Upp Upp Zhi Pro Fac Ext Cet Arc Res Tes Res Qua Frg Traps Triggered 20 | . 1 . . . 4 . . . . 2 . . . . 2 3 . . . 3 2 . 3 Indirectly . | . . . . . . . . . . . . . . . . . . . . . . . . Trap Hack Attempts . | . . . . . . . . . . . . . . . . . . . . . . . . Triggered . | . . . . . . . . . . . . . . . . . . . . . . . . Disarmed . | . . . . . . . . . . . . . . . . . . . . . . . . Reprogrammed 5 | . . . . . . . . . . 5 . . . . . . . . . . . . . Reused 2 | . . . . . . . . . . 2 . . . . . . . . . . . . . Traps Extracted . | . . . . . . . . . . . . . . . . . . . . . . . . Installed 20 | . . . . . . 11 9 . . . . . . . . . . . . . . . . Triggered 2 | . . . . . . . . . . 2 . . . . . . . . . . . . . Machines | -11 -10 -10 -9 -9 -6 -6 -6 -6 -5 -5 -5 -5 -5 -4 -4 -4 -4 -4 -3 -3 -2 -2 -2 ---------- Run | Yrd Mat Sub Rec Scr Fac Low Low Dat Pro Fac Upp Upp Zhi Pro Fac Ext Cet Arc Res Tes Res Qua Frg Machines Disabled 61 | . . 3 . . 1 . . . . 19 . . . 3 . 2 . 1 1 7 . 5 19 Max in Single Turn 18 | . . 2 . . 1 . . . . 18 . . . 1 . 1 . . 1 1 . 1 2 Garrison Access 8 | . . . . . 2 . . . . 1 . . . . . . . . 1 1 2 1 . Machines Repaired . | . . . . . . . . . . . . . . . . . . . . . . . . Machines Dismantled . | . . . . . . . . . . . . . . . . . . . . . . . . Machines Sabotaged . | . . . . . . . . . . . . . . . . . . . . . . . . Overloaded Fab Kills . | . . . . . . . . . . . . . . . . . . . . . . . . Hacking | -11 -10 -10 -9 -9 -6 -6 -6 -6 -5 -5 -5 -5 -5 -4 -4 -4 -4 -4 -3 -3 -2 -2 -2 --------- Run | Yrd Mat Sub Rec Scr Fac Low Low Dat Pro Fac Upp Upp Zhi Pro Fac Ext Cet Arc Res Tes Res Qua Frg Machines Accessed 148 | . 7 2 10 11 24 1 1 4 . 21 . . 5 3 12 5 3 . 2 10 9 5 13 Terminals 75 | . 7 . 6 . 12 1 1 . . 12 . . . 1 4 3 3 . 1 8 6 4 6 Fabricators 11 | . . . . . 2 . . . . 2 . . . 1 . . . . . 1 1 . 4 Repair Stations . | . . . . . . . . . . . . . . . . . . . . . . . . Recycling Units 28 | . . . 4 . 7 . . . . 5 . . . 1 6 2 . . . . . . 3 Scanalyzers 2 | . . . . . . . . . . 1 . . . . 1 . . . . . . . . Garrison Access 10 | . . . . . 3 . . . . 1 . . . . 1 . . . 1 1 2 1 . Total Hacks 410 | . 14 3 27 84 53 5 1 28 . 53 . . 18 6 26 11 7 . 3 16 19 7 29 Successful 312 | . 7 3 19 84 39 5 1 28 . 36 . . 18 3 18 8 5 . 2 6 11 4 15 Failed 98 | . 7 . 8 . 14 . . . . 17 . . . 3 8 3 2 . 1 10 8 3 14 Catastrophic 12 | . 2 . . . . . . . . 3 . . . . . 1 . . . 2 1 1 2 Database Lockouts . | . . . . . . . . . . . . . . . . . . . . . . . . Manual 175 | . 14 . 22 . 41 . . . . 30 . . . 3 20 10 1 . 1 8 10 4 11 Terminals 196 | . 14 . 23 . 35 5 1 . . 37 . . . 1 14 9 7 . 1 13 15 5 16 Fabricators 21 | . . . . . 2 . . . . 6 . . . 2 . . . . . 1 1 . 9 Repair Stations . | . . . . . . . . . . . . . . . . . . . . . . . . Recycling Units 40 | . . . 4 . 10 . . . . 8 . . . 3 9 2 . . . . . . 4 Scanalyzers 2 | . . . . . . . . . . 1 . . . . 1 . . . . . . . . Garrison Access 18 | . . . . . 6 . . . . 1 . . . . 2 . . . 2 2 3 2 . Terminal Hacks 211 | . 5 3 10 84 12 5 1 28 . 17 . . 18 1 6 3 5 . . 2 4 1 6 Record 116 | . 1 1 . 78 . 5 1 11 . . . . 6 1 . . 4 . . 1 1 1 5 Part Schematic 15 | . . . 2 . . . . 8 . . . . 4 . 1 . . . . . . . . Robot Schematic 6 | . . . . . . . . 6 . . . . . . . . . . . . . . . Robot Analysis 22 | . 2 . 3 6 5 . . . . 1 . . 4 . . 1 . . . . . . . Prototype ID Bank 10 | . . . 2 . . . . 3 . 1 . . 4 . . . . . . . . . . Open Door 4 | . . 1 . . . . . . . . . . . . . . 1 . . 1 1 . . Branch Access Points 4 | . 1 . 1 . . . . . . 1 . . . . . . . . . . 1 . . Machine Index 2 | . . . 1 . . . . . . 1 . . . . . . . . . . . . . Terminal Index 1 | . . . . . . . . . . . . . . . . . . . . . 1 . . Recycling Unit Index 2 | . . . . . 1 . . . . . . . . . . . . . . . . . 1 Alert Level 6 | . . . . . 2 . . . . 3 . . . . . 1 . . . . . . . Unreport Threat 4 | . . . . . 1 . . . . 2 . . . . . 1 . . . . . . . Locate Traps 4 | . . . . . 1 . . . . 2 . . . . 1 . . . . . . . . Reprogram Traps 1 | . . . . . . . . . . 1 . . . . . . . . . . . . . Recall Investigation 5 | . . . . . 2 . . . . 1 . . . . 2 . . . . . . . . Recall Extermination 2 | . . . . . . . . . . . . . . . 2 . . . . . . . . Zone Layout 6 | . 1 . 1 . . . . . . 4 . . . . . . . . . . . . . Release Object 1 | . . 1 . . . . . . . . . . . . . . . . . . . . . Fabricator Hacks 12 | . . . . . 1 . . . . 4 . . . 1 . . . . . . 1 . 5 Network Status 1 | . . . . . 1 . . . . . . . . . . . . . . . . . . Load Schematic 6 | . . . . . . . . . . 2 . . . 1 . . . . . . . . 3 Build 5 | . . . . . . . . . . 2 . . . . . . . . . . 1 . 2 Repair Station Hacks . | . . . . . . . . . . . . . . . . . . . . . . . . Recycling Unit Hacks 5 | . . . . . 3 . . . . 1 . . . . 1 . . . . . . . . Report Inventory 1 | . . . . . 1 . . . . . . . . . . . . . . . . . . Retrieve Components 4 | . . . . . 2 . . . . 1 . . . . 1 . . . . . . . . Scanalyzer 2 | . . . . . . . . . . 1 . . . . 1 . . . . . . . . Insert Component 2 | . . . . . . . . . . 1 . . . . 1 . . . . . . . . Garrison Access Hacks 8 | . . . . . 2 . . . . 1 . . . . . . . . 1 1 2 1 . Seal Access 8 | . . . . . 2 . . . . 1 . . . . . . . . 1 1 2 1 . Unauthorized Hacks 74 | . 2 . 9 . 21 . . . . 12 . . . 1 10 5 . . 1 3 4 2 4 Terminals 44 | . 2 . 5 . 12 . . . . 7 . . . . 4 3 . . 1 3 4 2 1 Assimilate 5 | . . . . . . . . . . . . . . . 1 . . . . 2 1 . 1 Botnet 39 | . 2 . 5 . 12 . . . . 7 . . . . 3 3 . . 1 1 3 2 . Fabricators 1 | . . . . . 1 . . . . . . . . . . . . . . . . . . Fabnet 1 | . . . . . 1 . . . . . . . . . . . . . . . . . . Repair Stations 24 | . . . . . 7 . . . . 5 . . . 1 6 2 . . . . . . 3 Recycling Units 4 | . . . 4 . . . . . . . . . . . . . . . . . . . . Tunnel 4 | . . . 4 . . . . . . . . . . . . . . . . . . . . Fedlink 23 | . . . . . 7 . . . . 5 . . . 1 6 2 . . . . . . 2 Scrapoids 1 | . . . . . . . . . . . . . . . . . . . . . . . 1 Scanalyzers . | . . . . . . . . . . . . . . . . . . . . . . . . Garrison Access 1 | . . . . . 1 . . . . . . . . . . . . . . . . . . Watchers 1 | . . . . . 1 . . . . . . . . . . . . . . . . . . Data Cores Recovered 4 | . . . . . . . . . . 1 . . . . . 1 . . . 1 . 1 . Used 2 | . . . . . . . . . . 1 . . . . . 1 . . . . . . . Hacking Detections 82 | . 5 . 5 . 15 1 . . . 13 . . . 2 6 3 3 . 2 8 6 3 10 Full Trace Events 15 | . . . . . 2 1 . . . 2 . . . . 1 . 1 . . 3 1 . 4 Feedback Events 2 | . . . . . . . . . . . . . . . . . . . . 1 1 . . Corruption 2 | . . . . . . . . . . . . . . . . . . . . 1 1 . . Feedback Blocked . | . . . . . . . . . . . . . . . . . . . . . . . . Robot Schematics Acquired 7 | . . . . . . . . 6 . . . . . . . . . . . . . . 1 Robots Built 5 | . . . . . . . . . . . . . . . . . . . . . 3 . 2 Authchips . | . . . . . . . . . . . . . . . . . . . . . . . . Time 261 | . . . . . . . . . . . . . . . . . . . . . 187 . 74 Total Robot Build Rating 39 | . . . . . . . . . . . . . . . . . . . . . 21 . 18 Part Schematics Acquired 24 | . . . 2 . . . . 8 . . . . 4 . 1 . . . . 6 . . 3 Parts Built 3 | . . . . . . . . . . 2 . . . . . . . . . . . . 1 Authchips . | . . . . . . . . . . . . . . . . . . . . . . . . Time 208 | . . . . . . . . . . 140 . . . . . . . . . . . . 68 Total Part Build Rating 20 | . . . . . . . . . . 12 . . . . . . . . . . . . 8 Parts Repaired . | . . . . . . . . . . . . . . . . . . . . . . . . Time . | . . . . . . . . . . . . . . . . . . . . . . . . Parts Recycled . | . . . . . . . . . . . . . . . . . . . . . . . . Recycled Matter . | . . . . . . . . . . . . . . . . . . . . . . . . Retrieved Matter . | . . . . . . . . . . . . . . . . . . . . . . . . Retrieved Components 13 | . . . . . 11 . . . . 2 . . . . . . . . . . . . . Parts Scanalyzed . | . . . . . . . . . . . . . . . . . . . . . . . . Part Schematics Acquired . | . . . . . . . . . . . . . . . . . . . . . . . . Parts Damaged . | . . . . . . . . . . . . . . . . . . . . . . . . Bothacking | -11 -10 -10 -9 -9 -6 -6 -6 -6 -5 -5 -5 -5 -5 -4 -4 -4 -4 -4 -3 -3 -2 -2 -2 ------------ Run | Yrd Mat Sub Rec Scr Fac Low Low Dat Pro Fac Upp Upp Zhi Pro Fac Ext Cet Arc Res Tes Res Qua Frg Used RIF Installer . | . . . . . . . . . . . . . . . . . . . . . . . . Robots Hacked 5 | . . . . . . . . . . 2 . . . . 2 1 . . . . . . . Non-combat . | . . . . . . . . . . . . . . . . . . . . . . . . Combat 5 | . . . . . . . . . . 2 . . . . 2 1 . . . . . . . Robot Hacks Applied . | . . . . . . . . . . . . . . . . . . . . . . . . Relay Couplers Released 2 | . . . . . 2 . . . . . . . . . . . . . . . . . . Programmers 2 | . . . . . 2 . . . . . . . . . . . . . . . . . . Fabnet Peak Effective % 3 | . . . . . . . . . 3 3 3 3 3 1 1 1 1 1 . . . . . Autooverrided 5 | . . . . . . . . . . 2 . . . . 2 1 . . . . . . . Robots Rewired 11 | . . . . . . . . . . . . . . 11 . . . . . . . . . Allies Hacked . | . . . . . . . . . . . . . . . . . . . . . . . . Hacks Repelled . | . . . . . . . . . . . . . . . . . . . . . . . . Allies | -11 -10 -10 -9 -9 -6 -6 -6 -6 -5 -5 -5 -5 -5 -4 -4 -4 -4 -4 -3 -3 -2 -2 -2 -------- Run | Yrd Mat Sub Rec Scr Fac Low Low Dat Pro Fac Upp Upp Zhi Pro Fac Ext Cet Arc Res Tes Res Qua Frg Total Allies 44 | . . . . . . . . . . 2 . . . 11 2 12 5 . . 1 3 . 8 Largest Group 13 | . . . . . . . . . . 1 . . . 6 2 9 13 13 10 8 3 . 5 Highest-Rated Group 924 | . . . . . . . . . . 54 . . . 292 96 478 924 924 698 544 141 . 320 Highest-Rated Ally 159 | . . . . . . . . . . 54 . . . 50 54 159 159 159 96 96 47 . 89 Total Orders 2 | . . . . . 1 . . . . . . . . . 1 . . . . . . . . STAY 1 | . . . . . . . . . . . . . . . 1 . . . . . . . . EXPLORE 1 | . . . . . 1 . . . . . . . . . . . . . . . . . . Ally Attacks 291 | . . . . . . . . . . 3 . . . 45 9 58 13 26 35 34 12 . 56 Total Damage 8315 | . . . . . . . . . . 49 . . . 1426 212 1374 348 1012 1263 946 366 . 1319 Kills 34 | . . . . . . . . . . . . . . 5 . 4 2 2 6 6 1 . 8 Allies Corrupted 3 | . . . . . . . . . . . . . . . . . . . . 2 . . 1 Allies Melted 2 | . . . . . . . . . . . . . . . . . . . . . . . 2 Intel | -11 -10 -10 -9 -9 -6 -6 -6 -6 -5 -5 -5 -5 -5 -4 -4 -4 -4 -4 -3 -3 -2 -2 -2 ------- Run | Yrd Mat Sub Rec Scr Fac Low Low Dat Pro Fac Upp Upp Zhi Pro Fac Ext Cet Arc Res Tes Res Qua Frg Active Infowar (turns) 19822 | . 221 1608 834 2554 2355 699 544 93 531 2776 353 174 223 909 1315 1176 250 76 152 1143 380 571 885 Structural 19794 | . 221 1608 834 2554 2351 699 544 93 531 2752 353 174 223 909 1315 1176 250 76 152 1143 380 571 885 Cloaking 7603 | . . . . . 1238 699 544 93 531 2776 353 174 119 . 1076 . . . . . . . . Robot Analysis Total 22 | . 2 . 3 6 5 . . . . 1 . . 4 . . 1 . . . . . . . Derelict Logs Recovered 8 | . . 2 . 2 . 1 2 . . . . . . 1 . . . . . . . . . Drone Launches 2 | . . . . . 2 . . . . . . . . . . . . . . . . . . Drone Recoveries . | . . . . . . . . . . . . . . . . . . . . . . . . Exploration | -11 -10 -10 -9 -9 -6 -6 -6 -6 -5 -5 -5 -5 -5 -4 -4 -4 -4 -4 -3 -3 -2 -2 -2 ------------- Run | Yrd Mat Sub Rec Scr Fac Low Low Dat Pro Fac Upp Upp Zhi Pro Fac Ext Cet Arc Res Tes Res Qua Frg Turns Passed 24423 | 70 920 1608 840 3052 2358 699 544 93 531 2805 353 174 223 909 1315 1176 250 76 152 1143 380 571 4181 Spaces Moved 19544 | 48 630 982 538 2512 1629 384 401 78 324 1561 273 146 183 605 1026 836 232 47 172 1102 650 780 4405 Core 5 | 5 . . . . . . . . . . . . . . . . . . . . . . . Treads . | . . . . . . . . . . . . . . . . . . . . . . . . Legs 9604 | 43 630 982 538 2512 1629 384 401 78 324 1561 273 146 103 . . . . . . . . . . Wheels . | . . . . . . . . . . . . . . . . . . . . . . . . Hover 9935 | . . . . . . . . . . . . . 80 605 1026 836 232 47 172 1102 650 780 4405 Flight . | . . . . . . . . . . . . . . . . . . . . . . . . Fastest Speed 23 | 50 120 120 120 120 120 120 120 120 120 120 120 120 92 92 40 92 38 38 38 38 38 24 23 Average Speed 88 | 124 120 140 139 120 120 120 120 120 120 120 120 120 108 92 91 92 38 38 38 82 38 37 35 Slowest Speed 230 | 190 120 190 190 120 190 120 120 120 120 120 120 120 230 92 92 92 92 38 38 92 90 38 40 Overloaded Moves 436 | . . . . . . . . . . . . . . . . . . . . . . 11 425 Propulsion Burnouts . | . . . . . . . . . . . . . . . . . . . . . . . . Robots Hopped 1 | . . . . . . . . . . . . . . . . . . . . . . . 1 Potential Cave-ins 1 | . . . . . . . . . 1 . . . . . . . . . . . . . . Cave-ins Triggered . | . . . . . . . . . . . . . . . . . . . . . . . . Exploration Rate (%) 60 | 4 98 67 96 93 56 61 63 69 55 46 48 30 62 61 31 89 81 79 5 92 22 75 71 Regions Visited 23 Branch Regions 17 Pre-discovered Areas 16 | . . 1 4 5 1 . 1 1 . . . . 3 . . . . . . . . . . Known Exits Taken 23 | 1 1 1 1 1 1 1 1 1 1 1 1 1 1 1 1 1 1 1 1 1 1 1 . Unknown Exits Taken . | . . . . . . . . . . . . . . . . . . . . . . . . Scrap Searched 24 | . . 7 . 6 . 1 5 . 2 . 2 . . 1 . . . . . . . . . Spaces Dug 215 | . . 36 . . 39 . . . 39 30 . . . 1 17 . . . 1 8 18 5 21 Terrain Destroyed 813 | . 17 80 . . 43 4 1 . 39 93 . . . 4 24 3 . 3 24 13 22 5 438 Melee 109 | . . . . . 22 . . . . 28 . . . 1 15 . . . 1 8 18 5 11 Projectile 423 | . . . . . . . . . . 9 . . . . 7 1 . . . 5 4 . 397 AOE 257 | . 17 80 . . 17 . . . 39 53 . . . . . . . . 21 . . . 30 Terrain Rammed . | . . . . . . . . . . . . . . . . . . . . . . . . Walls Destroyed . | . . . . . . . . . . . . . . . . . . . . . . . . Machines Disabled . | . . . . . . . . . . . . . . . . . . . . . . . . Actions | -11 -10 -10 -9 -9 -6 -6 -6 -6 -5 -5 -5 -5 -5 -4 -4 -4 -4 -4 -3 -3 -2 -2 -2 --------- Run | Yrd Mat Sub Rec Scr Fac Low Low Dat Pro Fac Upp Upp Zhi Pro Fac Ext Cet Arc Res Tes Res Qua Frg Total 24313 | 55 710 1110 587 2554 1907 550 444 77 439 2232 298 145 207 850 1298 1106 359 87 228 1286 733 1019 6032 Wait 1607 | . 12 17 15 11 53 42 8 . 70 285 25 . . 26 119 91 94 26 30 71 38 197 377 Move 19519 | 47 629 981 537 2511 1628 383 400 77 323 1560 272 145 182 604 1025 835 231 46 171 1101 649 779 4403 Hop 1 | . . . . . . . . . . . . . . . . . . . . . . . 1 Pick Up 101 | 1 6 3 1 6 12 . 1 . . 6 1 . 2 1 6 . 1 . . 5 1 3 45 Fast Attach 110 | 7 3 2 1 5 20 3 . . . 10 . . 9 4 6 5 . . . 9 1 2 23 Attach 26 | . 1 2 . 2 4 . . . 1 2 . . . . 2 . 2 . 1 1 1 3 4 Detach 32 | . 2 1 . 5 9 . . . . 2 . . 1 . . . . . . 3 . 1 8 Swap 71 | . 1 8 4 3 11 . . . 3 18 . . 2 2 7 4 3 . . 3 . . 2 Drop 164 | . 4 5 . 11 21 3 1 . 1 14 . . 11 4 10 5 1 . . 14 . 5 54 Fire 1547 | . 43 66 18 . 94 85 18 . 31 141 . . . 130 79 94 25 12 19 38 20 5 629 Melee 312 | . 1 . . . 32 8 5 . 2 110 . . . 18 35 10 . . 2 15 23 18 33 Ram . | . . . . . . . . . . . . . . . . . . . . . . . . Kick . | . . . . . . . . . . . . . . . . . . . . . . . . Crush . | . . . . . . . . . . . . . . . . . . . . . . . . Escape Stasis 56 | . . . . . . . . . . . . . . . . 39 . . . 13 . . 4 Rewire 42 | . . . . . . . . . . . . . . 42 . . . . . . . . . Trap 20 | . . . . . . 11 9 . . . . . . . . . . . . . . . . Miscellaneous 705 | . 8 25 11 . 23 15 2 . 8 84 . . . 19 9 23 2 3 5 13 . 6 449 Route ------- -11/Scrapyard -10/Materials (discovered 5 exits: *Mat x3 / *Min / *Sub) -10/Subcaves (discovered 2 exits: *Mat / *Rec) -9/Recycling (discovered 2 exits: *Fac / *Scr) -9/Scraptown (discovered 2 exits: *Fac x2) -6/Factory (discovered 6 exits: *Fac x4 / *Low x2) -6/Lower Caves -6/Lower Caves (discovered 2 exits: Fac / *Dat) -6/Data Miner -5/Proximity Caves -5/Factory (discovered 5 exits: *Fac x3 / *Upp x2) -5/Upper Caves -5/Upper Caves -5/Zhirov -4/Proximity Caves -4/Factory (discovered 4 exits: *Res / *Upp / *Ext x2) -4/Extension (discovered 3 exits: *Res x2 / *Cet) -4/Cetus (discovered 2 exits: *Res / *Arc) -4/Archives (discovered 3 exits: *Res / *Hub x2) -3/Research (discovered 2 exits: Arm / *Tes) -3/Testing -2/Research (discovered 3 exits: *Acc / *Qua x2) -2/Quarantine (discovered 3 exits: *Acc / *Sec / *Frg) -2/Protoforge 0bPrime History --------- Turn | Location | Event 1 | -11/Scrapyard | Upgraded with Propulsion slot (x1) 1 | -11/Scrapyard | Upgraded with Utility slot (x1) 1 | -11/Scrapyard | Upgraded with Weapon slot (x1) 5 | -11/Scrapyard | Identified exit to Materials 5 | -11/Scrapyard | Discovered exit to Materials (range 15) 71 | -11/Scrapyard | Entered Materials 79 | -10/Materials | Identified exit to Mines 300 | -10/Materials | Build established: Hacker-Mutant 469 | -10/Materials | Identified exit to Materials 469 | -10/Materials | Discovered exit to Materials (range 10) 560 | -10/Materials | Discovered exit to Materials (range 11) 747 | -10/Materials | Discovered exit to Materials (range 15) 887 | -10/Materials | Identified exit to Subcaves 887 | -10/Materials | Discovered exit to Subcaves (range 6) 991 | -10/Materials | Entered Subcaves 993 | -10/Subcaves | Reached level 2 993 | -10/Subcaves | Upgraded with Utility slot (x2) 1464 | -10/Subcaves | Shifting Twisted Machinery released Riot Gun 1528 | -10/Subcaves | Released subatomizers from SUBCON Basin 1570 | -10/Subcaves | Identified exit to Materials 1570 | -10/Subcaves | Discovered exit to Materials (range 3) 1630 | -10/Subcaves | Shifting Twisted Machinery released Sub. Laser 1804 | -10/Subcaves | Learned Materials security intel 2015 | -10/Subcaves | Identified exit to Recycling 2404 | -10/Subcaves | Learned location of Zion (-7) 2404 | -10/Subcaves | Met a Zionite searching for "candidates" 2534 | -10/Subcaves | Reached level 3 2552 | -10/Subcaves | Upgraded with Propulsion slot (x1) 2599 | -10/Subcaves | Entered Recycling 2767 | -9/Recycling | Reached level 4 2890 | -9/Recycling | Upgraded with Utility slot (x1) 3017 | -9/Recycling | Identified exit to Factory 3017 | -9/Recycling | Discovered exit to Factory (range 9) 3411 | -9/Recycling | Scanned before Scraplab entrance 3424 | -9/Recycling | Identified exit to Scraptown 3424 | -9/Recycling | Discovered exit to Scraptown (range 11) 3439 | -9/Recycling | Entered Scraptown 3754 | -9/Scraptown | Identified exit to Factory 3754 | -9/Scraptown | Discovered exit to Factory (range 5) 3784 | -9/Scraptown | Scanned Subdweller tech in exchange for log data 3815 | -9/Scraptown | Visited CR-KLE's Repair Center 3825 | -9/Scraptown | CR-KLE repaired 3 parts 3838 | -9/Scraptown | Visited Cyclists 3870 | -9/Scraptown | Visited Red Mages 4015 | -9/Scraptown | Visited Spacefarers 4271 | -9/Scraptown | Visited Shadow of the Wyrm 4313 | -9/Scraptown | Visited UFD Registry 4313 | -9/Scraptown | Registered with UFD as "Carbonwalker" 4313 | -9/Scraptown | Reached level 5 4376 | -9/Scraptown | Entered Cyclist Reading Room 4403 | -9/Scraptown | Visited IN-MT5's Study 4432 | -9/Scraptown | Visited SPCMW 4605 | -9/Scraptown | Visited Chapter 10 4700 | -9/Scraptown | Visited Botcube Research 4708 | -9/Scraptown | Found Lrg. Botcube 4737 | -9/Scraptown | Visited Analyses Database 5124 | -9/Scraptown | Delivered Scrap Shield to a Scientist 5263 | -9/Scraptown | Visited LU-1G1's Boring Crew 5323 | -9/Scraptown | Visited DA-N13 Charitable Foundation 5336 | -9/Scraptown | Found DCF Scrap (27 items) 5378 | -9/Scraptown | Visited Abandonware Association 5401 | -9/Scraptown | Learned abandonware demo "OVRCLOCK.EXE" 5405 | -9/Scraptown | Learned abandonware demo "SHUTEYE.EXE" 5405 | -9/Scraptown | Learned abandonware demo "TRNCOAT.EXE" 5426 | -9/Scraptown | Visited Cartography Club 5669 | -9/Scraptown | Learned location of Storage (-9) 5669 | -9/Scraptown | Learned location of Recycling (-9) 5669 | -9/Scraptown | Learned location of Proximity Caves (-4) 5669 | -9/Scraptown | Learned 12 Factory zone layouts 5669 | -9/Scraptown | Learned 16 Factory zone layouts 5669 | -9/Scraptown | Learned 8 Research zone layouts 5669 | -9/Scraptown | Learned 12 Lower Caves zone layouts 5669 | -9/Scraptown | Learned 8 Upper Caves zone layouts 5669 | -9/Scraptown | Learned 8 Proximity Caves zone layouts 5669 | -9/Scraptown | Learned location of 2 exits from Factory 5669 | -9/Scraptown | Learned location of 2 exits from Proximity Caves 5741 | -9/Scraptown | Found Deep Structural Scanner 5901 | -9/Scraptown | Discovered exit to Factory (range 3) 5998 | -9/Scraptown | Visited Derelict Rescue Squad 6029 | -9/Scraptown | Visited Scrap Suit Storage 6066 | -9/Scraptown | Visited Curators Association 6413 | -9/Scraptown | Met Optimus 6413 | -9/Scraptown | Accepted into 0bPrime 6491 | -9/Scraptown | Entered Factory 6492 | -6/Factory | Identified exit to Lower Caves 6493 | -6/Factory | Identified exit to Factory 6493 | -6/Factory | Reached level 6 6493 | -6/Factory | Reached level 7 6493 | -6/Factory | Reached level 8 6493 | -6/Factory | Reached level 9 6493 | -6/Factory | Reached level 10 6493 | -6/Factory | Reached level 11 6493 | -6/Factory | Reached level 12 6493 | -6/Factory | Reached level 13 6493 | -6/Factory | Upgraded with Power slot (x1) 6494 | -6/Factory | Upgraded with Utility slot (x2) 6494 | -6/Factory | Upgraded with Utility slot (x1) 6894 | -6/Factory | Loaded intel: 8 recycling unit locations 7230 | -6/Factory | Reached level 14 7275 | -6/Factory | Upgraded with Power slot (x1) 7415 | -6/Factory | Garrison activated, responded to threat 7581 | -6/Factory | Build established: Hacker-Assassin 7647 | -6/Factory | Learned location of Protoforge (-2) 8354 | -6/Factory | Reached level 15 8368 | -6/Factory | Upgraded with Propulsion slot (x1) 8849 | -6/Factory | Entered Lower Caves 8851 | -6/Lower Caves | UFD Scientist delivered a prototype 8863 | -6/Lower Caves | Found Prototype Protection 8863 | -6/Lower Caves | Identified Enh. Scrap Shield 8965 | -6/Lower Caves | Attracted the attention of an 0b10 base 9092 | -6/Lower Caves | Identified exit to Lower Caves 9092 | -6/Lower Caves | Learned location of 1 exit from Lower Caves 9092 | -6/Lower Caves | Learned 6 Upper Caves zone layouts 9224 | -6/Lower Caves | Reached level 16 9548 | -6/Lower Caves | Entered another Lower Caves area 9987 | -6/Lower Caves | Identified exit to Data Miner 9987 | -6/Lower Caves | Discovered exit to Data Miner (range 11) 10022 | -6/Lower Caves | Entered a destroyed Warlord outpost 10092 | -6/Lower Caves | Entered Data Miner 10092 | -6/Data Miner | Identified exit to Proximity Caves 10092 | -6/Data Miner | Discovered exit to Proximity Caves (range 6) 10094 | -6/Data Miner | Reached level 17 10114 | -6/Data Miner | Met Data Miner 10136 | -6/Data Miner | Learned location of Section 7 (-2) 10136 | -6/Data Miner | Acquired the access code to Warlord's prototype stash 10158 | -6/Data Miner | Received God Mode back door access code from Data Miner 10185 | -6/Data Miner | Entered Proximity Caves 10275 | -5/Proximity Caves | P-70 Sage assimilated allied W4-GN5(S) 10306 | -5/Proximity Caves | Spotted B-75 Beast 10311 | -5/Proximity Caves | Spotter reported a threat 10413 | -5/Proximity Caves | Spotter reported a threat 10619 | -5/Proximity Caves | Reached level 18 10663 | -5/Proximity Caves | Upgraded with Utility slot (x1) 10716 | -5/Proximity Caves | Entered Factory 10718 | -5/Factory | Reached level 19 10944 | -5/Factory | Identified exit to Upper Caves 10944 | -5/Factory | Discovered exit to Upper Caves (range 7) 11155 | -5/Factory | Fabricated Enh. Armored Leg (x1) 11472 | -5/Factory | Reached level 20 11482 | -5/Factory | Upgraded with Utility slot (x1) 11843 | -5/Factory | Loaded intel: 8 recycling unit locations 11924 | -5/Factory | Identified exit to Factory 11924 | -5/Factory | Discovered exit to Factory (range 17) 12177 | -5/Factory | Discovered exit to Factory (range 16) 12494 | -5/Factory | Found Prototype Launcher 12658 | -5/Factory | Core integrity fell below 50% 12729 | -5/Factory | Reached level 21 12783 | -5/Factory | Fabricated Enh. Armored Leg? 12852 | -5/Factory | Discovered exit to Factory (range 12) 13521 | -5/Factory | Entered Upper Caves 13857 | -5/Upper Caves | Identified exit to Upper Caves 13857 | -5/Upper Caves | Discovered exit to Upper Caves (range 9) 13874 | -5/Upper Caves | Entered another Upper Caves area 14026 | -5/Upper Caves | Identified exit to Zhirov 14026 | -5/Upper Caves | Discovered exit to Zhirov (range 16) 14033 | -5/Upper Caves | Encountered a Warlord checkpoint 14048 | -5/Upper Caves | Entered Zhirov 14048 | -5/Zhirov | Identified exit to Proximity Caves 14048 | -5/Zhirov | Discovered exit to Proximity Caves (range 4) 14050 | -5/Zhirov | Reached level 22 14071 | -5/Zhirov | Met Zhirov 14097 | -5/Zhirov | Learned location of Quarantine (-2) 14097 | -5/Zhirov | Learned location of Testing (-3) 14097 | -5/Zhirov | Learned location of Command (-1) 14119 | -5/Zhirov | Zhirov requested help retrieving the SGEMP Prototype 14148 | -5/Zhirov | Found Alien Artifact 14148 | -5/Zhirov | Identified Integrated Dissipator 14148 | -5/Zhirov | Installed Integrated Dissipator, increased core heat dissipation (+20) 14209 | -5/Zhirov | Found Alien Artifact 14271 | -5/Zhirov | Entered Proximity Caves 14309 | -4/Proximity Caves | Attracted the attention of an 0b10 checkpoint 14316 | -4/Proximity Caves | Reached level 23 14417 | -4/Proximity Caves | Learned Research machine intel 14497 | -4/Proximity Caves | Snuck into a huge 0b10 base via the rear entrance 14750 | -4/Proximity Caves | Lost 5 allies 15101 | -4/Proximity Caves | Loaded intel: 1 recycling unit location 15131 | -4/Proximity Caves | Reached level 24 15167 | -4/Proximity Caves | Lost 3 allies 15180 | -4/Proximity Caves | Entered Factory 15180 | -4/Factory | Accompanied by 2 allies 15181 | -4/Factory | Identified exit to Research 15181 | -4/Factory | Identified exit to Extension 15229 | -4/Factory | Found Prototype Device 15388 | -4/Factory | Identified Adv. EM Shield 15581 | -4/Factory | Loaded intel: 8 recycling unit locations 16292 | -4/Factory | Reached level 25 16395 | -4/Factory | Identified exit to Upper Caves 16395 | -4/Factory | Discovered exit to Upper Caves (range 10) 16437 | -4/Factory | Discovered exit to Extension (range 9) 16495 | -4/Factory | Entered Extension 16579 | -4/Extension | Loaded intel: 2 recycling unit locations 16647 | -4/Extension | Rescued a captive Derelict 16648 | -4/Extension | Rescued a captive Derelict 16704 | -4/Extension | Rescued A7 16761 | -4/Extension | Rescued a captive Derelict 16762 | -4/Extension | Rescued a captive Derelict 16825 | -4/Extension | Rescued a captive Derelict 16863 | -4/Extension | Rescued a captive Derelict 16990 | -4/Extension | Build established: Hacker-Skirmisher 17088 | -4/Extension | Disrupted transfer network 17278 | -4/Extension | Spotted B-86 Titan 17304 | -4/Extension | Allies destroyed B-86 Titan 17307 | -4/Extension | Spotted B-86 Titan 17322 | -4/Extension | Allies destroyed B-86 Titan 17325 | -4/Extension | Discovered exit to Research (range 17) 17427 | -4/Extension | Rescued a captive Derelict 17572 | -4/Extension | Rescued a captive Derelict 17575 | -4/Extension | Rescued a captive Derelict 17577 | -4/Extension | Rescued a captive Derelict 17622 | -4/Extension | Discovered exit to Research (range 11) 17636 | -4/Extension | Identified exit to Cetus 17636 | -4/Extension | Discovered exit to Cetus (range 6) 17671 | -4/Extension | Entered Cetus 17671 | -4/Cetus | Accompanied by 9 allies (A7) 17673 | -4/Cetus | Reached level 26 17673 | -4/Cetus | Upgraded with Propulsion slot (x1) 17676 | -4/Cetus | Acquired a Cetus Manufacturing Module code from A7 17677 | -4/Cetus | Spotted Cetus Guard 17677 | -4/Cetus | Spotted Cetus Guard 17678 | -4/Cetus | Destroyed Cetus Guard 17678 | -4/Cetus | Destroyed Cetus Guard 17681 | -4/Cetus | Spotted Cetus Guard 17681 | -4/Cetus | Spotted Cetus Guard 17686 | -4/Cetus | Destroyed Cetus Guard 17691 | -4/Cetus | Destroyed Cetus Guard 17730 | -4/Cetus | Started Cetus Manufacturing Module 17743 | -4/Cetus | Escorted A7 to Cetus Mainframe 17753 | -4/Cetus | Identified exit to Archives 17753 | -4/Cetus | Discovered exit to Archives (range 18) 17755 | -4/Cetus | Manufactured an Enhanced Grunt 17764 | -4/Cetus | Spotted Cetus Guard 17764 | -4/Cetus | Destroyed Cetus Guard 17765 | -4/Cetus | Spotted Cetus Guard 17767 | -4/Cetus | Spotted Cetus Guard 17768 | -4/Cetus | Spotted Cetus Guard 17772 | -4/Cetus | Destroyed Cetus Guard 17780 | -4/Cetus | Manufactured an Enhanced Grunt 17780 | -4/Cetus | Allies destroyed Cetus Guard 17785 | -4/Cetus | Allies destroyed Cetus Guard 17790 | -4/Cetus | Discovered exit to Research (range 19) 17794 | -4/Cetus | Met Revision 17 17805 | -4/Cetus | Manufactured an Enhanced Grunt 17830 | -4/Cetus | Manufactured an Enhanced Grunt 17855 | -4/Cetus | Manufactured an Enhanced Grunt 17921 | -4/Cetus | Entered Archives 17921 | -4/Archives | Accompanied by 13 allies (A7) 17926 | -4/Archives | Received a hacking code to weaken MAIN.C 17959 | -4/Archives | Identified exit to Hub_04(d) 17959 | -4/Archives | Discovered exit to Hub_04(d) (range 20) 17960 | -4/Archives | Discovered exit to Hub_04(d) (range 20) 17964 | -4/Archives | Discovered exit to Research (range 18) 17970 | -4/Archives | Build established: Hacker-Scout 17997 | -4/Archives | Entered Research 17997 | -3/Research | Accompanied by 10 allies 17998 | -3/Research | Identified exit to Armory 17999 | -3/Research | Identified exit to Testing 17999 | -3/Research | Reached level 27 17999 | -3/Research | Upgraded with Weapon slot (x1) 18000 | -3/Research | Loaded intel: 110 machine locations 18149 | -3/Research | Entered Testing 18149 | -3/Testing | Accompanied by 8 allies 18151 | -3/Testing | Reached level 28 18171 | -3/Testing | Found Prototype Hackware 18172 | -3/Testing | Identified System Mapper 18232 | -3/Testing | Lost 6 allies 18356 | -3/Testing | Found Prototype Device 18356 | -3/Testing | Identified Exp. EM Disruption Field 18531 | -3/Testing | Build established: Hacker-Assassin 18535 | -3/Testing | Found Prototype Launcher 18535 | -3/Testing | Identified Z-bomb Delivery System 18866 | -3/Testing | Found Prototype Device 18866 | -3/Testing | Identified AEGIS Remote Shield 18898 | -3/Testing | Found Prototype Ballistic Cannon 18898 | -3/Testing | Identified Omega Cannon 19047 | -3/Testing | Identified exit to Research 19047 | -3/Testing | Discovered exit to Research (range 12) 19292 | -3/Testing | Entered Research 19294 | -2/Research | Reached level 29 19294 | -2/Research | Reached level 30 19294 | -2/Research | Upgraded with Propulsion slot (x1) 19308 | -2/Research | Identified exit to Quarantine 19345 | -2/Research | Spotted B-90 Cyclops 19395 | -2/Research | Spotted B-90 Cyclops 19502 | -2/Research | Fabricated G-67 Veteran? 19569 | -2/Research | Identified exit to Access 19569 | -2/Research | Discovered exit to Access (range 10) 19588 | -2/Research | Build established: Hacker-Scout 19672 | -2/Research | Entered Quarantine 19674 | -2/Quarantine | Reached level 31 19737 | -2/Quarantine | Upgraded with Weapon slot (x1) 19738 | -2/Quarantine | Found Alien Slashing Weapon 19738 | -2/Quarantine | Identified Sigix Broadsword 19764 | -2/Quarantine | Found Alien Artifact 20174 | -2/Quarantine | Discovered exit to Access (range 15) 20216 | -2/Quarantine | Spotted Fortress 20241 | -2/Quarantine | Identified exit to Section 7 20241 | -2/Quarantine | Discovered exit to Section 7 (range 5) 20241 | -2/Quarantine | Identified exit to Protoforge 20241 | -2/Quarantine | Discovered exit to Protoforge (range 6) 20243 | -2/Quarantine | Entered Protoforge 20306 | -2/Protoforge | Superfortress began startup sequence 20344 | -2/Protoforge | Spotted Hotshot 20358 | -2/Protoforge | Discovered exit to Access (range 11) 20437 | -2/Protoforge | Spotted Hotshot 20439 | -2/Protoforge | Spotted Hotshot 20465 | -2/Protoforge | Spotted Hotshot 20466 | -2/Protoforge | Spotted Hotshot 20545 | -2/Protoforge | Reached level 32 20579 | -2/Protoforge | Destroyed Hotshot 20627 | -2/Protoforge | Spotted Hotshot 20627 | -2/Protoforge | Spotted Hotshot 20658 | -2/Protoforge | Found Prototype Ballistic Gun 20674 | -2/Protoforge | Spotted EXE-6 20674 | -2/Protoforge | Spotted EXE-6 20680 | -2/Protoforge | Spotted Decapitator 20686 | -2/Protoforge | UFD initiated attack on Protoforge 20686 | -2/Protoforge | Loaded intel: 3 recycling unit locations 20699 | -2/Protoforge | Identified Cep. XC Strikerail 20703 | -2/Protoforge | Scrapoid reinforcements arrived 20712 | -2/Protoforge | Found Cep. XC Strikerail 20722 | -2/Protoforge | Optimus greeted in Protoforge 20723 | -2/Protoforge | Found Cep. XC Strikerail 20732 | -2/Protoforge | Found Prototype Processor 20732 | -2/Protoforge | Identified Exp. Core Analyzer 20734 | -2/Protoforge | Found Prototype Processor 20734 | -2/Protoforge | Identified Exp. Armor Integrity Analyzer 20735 | -2/Protoforge | Lost 3 allies 20782 | -2/Protoforge | Allies destroyed Hotshot 20787 | -2/Protoforge | Destroyed Hotshot 20822 | -2/Protoforge | Fabricated Cld. Antigrav System (x1) 20825 | -2/Protoforge | Fabricated X-87 Electro (x2) 20838 | -2/Protoforge | Lost 5 allies 20849 | -2/Protoforge | Destroyed 10 combat bots 20934 | -2/Protoforge | Spotted Striker 20947 | -2/Protoforge | Allies destroyed Striker 21005 | -2/Protoforge | Build established: Scavenger-Scout 21049 | -2/Protoforge | Spotted Executioner 21049 | -2/Protoforge | Spotted Executioner 21052 | -2/Protoforge | Destroyed Executioner 21082 | -2/Protoforge | Spotted Striker 21084 | -2/Protoforge | Spotted Striker 21084 | -2/Protoforge | Spotted Executioner 21095 | -2/Protoforge | Destroyed Striker 21107 | -2/Protoforge | Spotted Executioner 21107 | -2/Protoforge | Spotted Executioner 21110 | -2/Protoforge | Destroyed Executioner 21126 | -2/Protoforge | Found Prototype Processor 21126 | -2/Protoforge | Identified Exp. Targeting Computer 21168 | -2/Protoforge | Spotted Striker 21169 | -2/Protoforge | Spotted Striker 21171 | -2/Protoforge | Destroyed Striker 21177 | -2/Protoforge | Destroyed Striker 21181 | -2/Protoforge | Lost 15 allies 21190 | -2/Protoforge | Reached level 33 21219 | -2/Protoforge | Destroyed 36 combat bots 21250 | -2/Protoforge | Lost 6 allies 21266 | -2/Protoforge | Found Prototype Device 21266 | -2/Protoforge | Identified Cep. Recoil Nullifier 21271 | -2/Protoforge | Found Cep. Recoil Nullifier 21303 | -2/Protoforge | Spotted Striker 21311 | -2/Protoforge | Destroyed Striker 21320 | -2/Protoforge | Spotted Striker 21325 | -2/Protoforge | Destroyed Striker 21333 | -2/Protoforge | Spotted Executioner 21367 | -2/Protoforge | Lost 6 allies 21369 | -2/Protoforge | Destroyed 11 combat bots 21429 | -2/Protoforge | Spotted Striker 21430 | -2/Protoforge | Spotted Striker 21432 | -2/Protoforge | Spotted Striker 21433 | -2/Protoforge | Destroyed Striker 21433 | -2/Protoforge | Destroyed Striker 21436 | -2/Protoforge | Destroyed Striker 21439 | -2/Protoforge | Spotted Executioner 21478 | -2/Protoforge | Destroyed 13 combat bots 21478 | -2/Protoforge | Spotted Striker 21478 | -2/Protoforge | Spotted Executioner 21478 | -2/Protoforge | Spotted Executioner 21478 | -2/Protoforge | Spotted Striker 21509 | -2/Protoforge | Spotted Executioner 21512 | -2/Protoforge | Destroyed Executioner 21516 | -2/Protoforge | Destroyed Executioner 21546 | -2/Protoforge | Lost 6 allies 21549 | -2/Protoforge | Spotted Striker 21549 | -2/Protoforge | Spotted Striker 21554 | -2/Protoforge | Destroyed Striker 21556 | -2/Protoforge | Destroyed Striker 21571 | -2/Protoforge | Spotted Striker 21573 | -2/Protoforge | Spotted Striker 21574 | -2/Protoforge | Spotted Striker 21575 | -2/Protoforge | Destroyed Striker 21575 | -2/Protoforge | Spotted Executioner 21577 | -2/Protoforge | Destroyed Striker 21583 | -2/Protoforge | Destroyed Executioner 21591 | -2/Protoforge | Destroyed Striker 21625 | -2/Protoforge | Destroyed 36 combat bots 21628 | -2/Protoforge | UFD reported confirmed Drillbomb installation 21635 | -2/Protoforge | Destroyed Hotshot 21646 | -2/Protoforge | Spotted Striker 21649 | -2/Protoforge | Destroyed Striker 21649 | -2/Protoforge | Spotted Striker 21654 | -2/Protoforge | Destroyed Striker 21655 | -2/Protoforge | Spotted Executioner 21655 | -2/Protoforge | Spotted Striker 21662 | -2/Protoforge | Destroyed Executioner 21677 | -2/Protoforge | Spotted Executioner 21680 | -2/Protoforge | Destroyed Executioner 21701 | -2/Protoforge | Spotted Executioner 21713 | -2/Protoforge | Destroyed 15 combat bots 21717 | -2/Protoforge | Reached level 34 21740 | -2/Protoforge | Spotted Executioner 21740 | -2/Protoforge | Destroyed Executioner 21746 | -2/Protoforge | Spotted Striker 21751 | -2/Protoforge | Spotted Striker 21759 | -2/Protoforge | Destroyed Striker 21763 | -2/Protoforge | Spotted Striker 21764 | -2/Protoforge | Spotted Striker 21769 | -2/Protoforge | Destroyed Striker 21779 | -2/Protoforge | Destroyed Striker 21787 | -2/Protoforge | Destroyed Striker 21805 | -2/Protoforge | Lost 4 allies 21821 | -2/Protoforge | Destroyed 16 combat bots 21921 | -2/Protoforge | Spotted Executioner 21948 | -2/Protoforge | Spotted Striker 21951 | -2/Protoforge | Spotted Striker 21958 | -2/Protoforge | Destroyed Striker 21966 | -2/Protoforge | Spotted Striker 21987 | -2/Protoforge | Spotted Executioner 21988 | -2/Protoforge | Destroyed 7 combat bots 21988 | -2/Protoforge | Spotted Executioner 22036 | -2/Protoforge | Spotted Striker 22036 | -2/Protoforge | Spotted Striker 22036 | -2/Protoforge | Spotted Striker 22036 | -2/Protoforge | Spotted Striker 22044 | -2/Protoforge | Destroyed Striker 22046 | -2/Protoforge | Destroyed Striker 22052 | -2/Protoforge | Destroyed Striker 22054 | -2/Protoforge | Destroyed Striker 22062 | -2/Protoforge | Spotted Striker 22062 | -2/Protoforge | Spotted Executioner 22070 | -2/Protoforge | Destroyed Executioner 22090 | -2/Protoforge | Destroyed Striker 22111 | -2/Protoforge | Destroyed 17 combat bots 22121 | -2/Protoforge | UFD reported confirmed Drillbomb installation 22136 | -2/Protoforge | Spotted Executioner 22136 | -2/Protoforge | Spotted Executioner 22136 | -2/Protoforge | Spotted Executioner 22136 | -2/Protoforge | Spotted Executioner 22147 | -2/Protoforge | Destroyed Executioner 22149 | -2/Protoforge | Destroyed Executioner 22149 | -2/Protoforge | Destroyed Executioner 22155 | -2/Protoforge | Destroyed Executioner 22162 | -2/Protoforge | Spotted Executioner 22162 | -2/Protoforge | Spotted Executioner 22176 | -2/Protoforge | Destroyed Executioner 22178 | -2/Protoforge | UFD reported confirmed Drillbomb installation 22197 | -2/Protoforge | Destroyed 21 combat bots 22236 | -2/Protoforge | Spotted Executioner 22236 | -2/Protoforge | Spotted Executioner 22236 | -2/Protoforge | Spotted Striker 22236 | -2/Protoforge | Spotted Striker 22241 | -2/Protoforge | Destroyed Striker 22246 | -2/Protoforge | Destroyed Executioner 22254 | -2/Protoforge | Destroyed Executioner 22261 | -2/Protoforge | Spotted Striker 22261 | -2/Protoforge | Spotted Striker 22261 | -2/Protoforge | Destroyed Striker 22282 | -2/Protoforge | Destroyed 12 combat bots 22336 | -2/Protoforge | Spotted Striker 22336 | -2/Protoforge | Spotted Executioner 22336 | -2/Protoforge | Spotted Executioner 22336 | -2/Protoforge | Spotted Executioner 22354 | -2/Protoforge | Destroyed Executioner 22357 | -2/Protoforge | Destroyed Executioner 22361 | -2/Protoforge | Spotted Executioner 22361 | -2/Protoforge | Spotted Executioner 22370 | -2/Protoforge | Destroyed Executioner 22380 | -2/Protoforge | Lost 3 allies 22381 | -2/Protoforge | Destroyed Executioner 22402 | -2/Protoforge | Destroyed 13 combat bots 22437 | -2/Protoforge | Spotted Striker 22437 | -2/Protoforge | Spotted Executioner 22437 | -2/Protoforge | Spotted Executioner 22437 | -2/Protoforge | Spotted Executioner 22439 | -2/Protoforge | Destroyed Executioner 22444 | -2/Protoforge | Destroyed Executioner 22449 | -2/Protoforge | Destroyed Executioner 22452 | -2/Protoforge | Destroyed Striker 22461 | -2/Protoforge | Spotted Executioner 22461 | -2/Protoforge | Spotted Striker 22464 | -2/Protoforge | Reached level 35 22477 | -2/Protoforge | Destroyed Executioner 22498 | -2/Protoforge | Destroyed 20 combat bots 22537 | -2/Protoforge | Destroyed Striker 22540 | -2/Protoforge | Spotted Striker 22540 | -2/Protoforge | Spotted Executioner 22540 | -2/Protoforge | Spotted Executioner 22565 | -2/Protoforge | Spotted Executioner 22568 | -2/Protoforge | Destroyed Executioner 22568 | -2/Protoforge | Destroyed Executioner 22572 | -2/Protoforge | Spotted Executioner 22576 | -2/Protoforge | Destroyed Executioner 22597 | -2/Protoforge | Destroyed 16 combat bots 22602 | -2/Protoforge | Lost 7 allies 22603 | -2/Protoforge | UFD reported confirmed Drillbomb installation 22648 | -2/Protoforge | Spotted Executioner 22648 | -2/Protoforge | Spotted Striker 22649 | -2/Protoforge | Spotted Executioner 22649 | -2/Protoforge | Spotted Executioner 22656 | -2/Protoforge | Destroyed Executioner 22659 | -2/Protoforge | Destroyed Striker 22664 | -2/Protoforge | Destroyed Executioner 22664 | -2/Protoforge | Destroyed Executioner 22749 | -2/Protoforge | Destroyed 20 combat bots 22754 | -2/Protoforge | Spotted Striker 22755 | -2/Protoforge | Spotted Striker 22758 | -2/Protoforge | Spotted Executioner 22762 | -2/Protoforge | Spotted Executioner 22762 | -2/Protoforge | Spotted Executioner 22765 | -2/Protoforge | Destroyed Striker 22766 | -2/Protoforge | Spotted Executioner 22773 | -2/Protoforge | Destroyed Executioner 22778 | -2/Protoforge | Destroyed Executioner 22787 | -2/Protoforge | UFD reported confirmed Drillbomb installation 22819 | -2/Protoforge | Destroyed 15 combat bots 22836 | -2/Protoforge | Spotted Striker 22836 | -2/Protoforge | Spotted Executioner 22836 | -2/Protoforge | Spotted Executioner 22836 | -2/Protoforge | Spotted Striker 22850 | -2/Protoforge | Destroyed Striker 22856 | -2/Protoforge | Destroyed Striker 22856 | -2/Protoforge | Destroyed Executioner 22856 | -2/Protoforge | Destroyed Executioner 22861 | -2/Protoforge | Spotted Striker 22861 | -2/Protoforge | Spotted Executioner 22864 | -2/Protoforge | UFD reported confirmed Drillbomb installation 22871 | -2/Protoforge | Lost 4 allies 22871 | -2/Protoforge | Destroyed Striker 22871 | -2/Protoforge | Destroyed Executioner 22894 | -2/Protoforge | Found Exp. Core Analyzer 22895 | -2/Protoforge | Destroyed 18 combat bots 22948 | -2/Protoforge | Spotted Striker 22948 | -2/Protoforge | Destroyed Striker 22954 | -2/Protoforge | Spotted Striker 22957 | -2/Protoforge | Spotted Executioner 22961 | -2/Protoforge | Spotted Striker 22961 | -2/Protoforge | Spotted Striker 23020 | -2/Protoforge | Lost 7 allies 23040 | -2/Protoforge | Spotted Executioner 23058 | -2/Protoforge | Spotted Striker 23058 | -2/Protoforge | Spotted Striker 23059 | -2/Protoforge | Destroyed Striker 23061 | -2/Protoforge | Spotted Striker 23061 | -2/Protoforge | Destroyed Striker 23065 | -2/Protoforge | Spotted Striker 23065 | -2/Protoforge | Spotted Executioner 23090 | -2/Protoforge | Destroyed Executioner 23107 | -2/Protoforge | Lost 7 allies 23123 | -2/Protoforge | Destroyed 11 combat bots 23140 | -2/Protoforge | Spotted Striker 23142 | -2/Protoforge | Spotted Striker 23144 | -2/Protoforge | Destroyed Striker 23147 | -2/Protoforge | Destroyed Striker 23162 | -2/Protoforge | Spotted Executioner 23162 | -2/Protoforge | Spotted Striker 23162 | -2/Protoforge | Destroyed Striker 23167 | -2/Protoforge | Destroyed Executioner 23201 | -2/Protoforge | Destroyed 11 combat bots 23236 | -2/Protoforge | Spotted Executioner 23236 | -2/Protoforge | Spotted Striker 23240 | -2/Protoforge | Spotted Executioner 23242 | -2/Protoforge | Spotted Executioner 23246 | -2/Protoforge | Destroyed Executioner 23249 | -2/Protoforge | Destroyed Executioner 23263 | -2/Protoforge | Spotted Executioner 23263 | -2/Protoforge | Spotted Executioner 23274 | -2/Protoforge | Destroyed Executioner 23295 | -2/Protoforge | Destroyed 13 combat bots 23300 | -2/Protoforge | Lost 6 allies 23346 | -2/Protoforge | Spotted Executioner 23348 | -2/Protoforge | Spotted Executioner 23349 | -2/Protoforge | Spotted Executioner 23355 | -2/Protoforge | Spotted Executioner 23371 | -2/Protoforge | Destroyed Executioner 23372 | -2/Protoforge | UFD reported confirmed Drillbomb installation 23390 | -2/Protoforge | Destroyed Executioner 23395 | -2/Protoforge | Destroyed Executioner 23395 | -2/Protoforge | Destroyed Executioner 23421 | -2/Protoforge | Destroyed 13 combat bots 23438 | -2/Protoforge | P-80 Master assimilated allied 02FDB-D 23443 | -2/Protoforge | Spotted Striker 23443 | -2/Protoforge | Spotted Striker 23443 | -2/Protoforge | Spotted Executioner 23444 | -2/Protoforge | Spotted Striker 23444 | -2/Protoforge | Destroyed Executioner 23444 | -2/Protoforge | Destroyed Striker 23447 | -2/Protoforge | Destroyed Striker 23463 | -2/Protoforge | Spotted Striker 23463 | -2/Protoforge | Spotted Striker 23466 | -2/Protoforge | Destroyed Striker 23477 | -2/Protoforge | Lost 8 allies 23487 | -2/Protoforge | Destroyed 12 combat bots 23536 | -2/Protoforge | Spotted Executioner 23536 | -2/Protoforge | Spotted Striker 23536 | -2/Protoforge | Spotted Executioner 23536 | -2/Protoforge | Spotted Striker 23544 | -2/Protoforge | Destroyed Executioner 23544 | -2/Protoforge | Destroyed Executioner 23550 | -2/Protoforge | Destroyed Striker 23562 | -2/Protoforge | Spotted Striker 23562 | -2/Protoforge | Spotted Striker 23564 | -2/Protoforge | Destroyed Striker 23564 | -2/Protoforge | Destroyed Striker 23604 | -2/Protoforge | Destroyed 12 combat bots 23636 | -2/Protoforge | Spotted Striker 23636 | -2/Protoforge | Spotted Striker 23636 | -2/Protoforge | Spotted Executioner 23636 | -2/Protoforge | Spotted Striker 23645 | -2/Protoforge | Destroyed Striker 23648 | -2/Protoforge | Destroyed Striker 23651 | -2/Protoforge | Destroyed Executioner 23656 | -2/Protoforge | Destroyed Striker 23661 | -2/Protoforge | Spotted Striker 23661 | -2/Protoforge | Spotted Striker 23667 | -2/Protoforge | Destroyed Striker 23672 | -2/Protoforge | Destroyed Striker 23701 | -2/Protoforge | Lost 5 allies 23718 | -2/Protoforge | Destroyed 17 combat bots 23737 | -2/Protoforge | Spotted Executioner 23737 | -2/Protoforge | Spotted Executioner 23737 | -2/Protoforge | Spotted Executioner 23737 | -2/Protoforge | Spotted Striker 23746 | -2/Protoforge | Destroyed Striker 23751 | -2/Protoforge | Destroyed Executioner 23756 | -2/Protoforge | Destroyed Executioner 23764 | -2/Protoforge | Destroyed Striker 23791 | -2/Protoforge | Destroyed 10 combat bots 23801 | -2/Protoforge | Lost 4 allies 23812 | -2/Protoforge | UFD reported confirmed Drillbomb installation 23838 | -2/Protoforge | P-80 Master assimilated allied 02FDM-D 23840 | -2/Protoforge | Spotted Executioner 23840 | -2/Protoforge | Spotted Executioner 23840 | -2/Protoforge | Spotted Striker 23840 | -2/Protoforge | Spotted Executioner 23844 | -2/Protoforge | Reached level 36 23844 | -2/Protoforge | Destroyed Executioner 23849 | -2/Protoforge | Destroyed Striker 23866 | -2/Protoforge | P-80 Master assimilated allied 02F91-D 23867 | -2/Protoforge | Spotted Striker 23878 | -2/Protoforge | Destroyed Executioner 23899 | -2/Protoforge | Destroyed 11 combat bots 23901 | -2/Protoforge | Lost 4 allies 23936 | -2/Protoforge | Spotted Executioner 23936 | -2/Protoforge | Spotted Executioner 23936 | -2/Protoforge | Spotted Executioner 23936 | -2/Protoforge | Spotted Striker 23944 | -2/Protoforge | Destroyed Executioner 23947 | -2/Protoforge | Destroyed Executioner 23950 | -2/Protoforge | Destroyed Executioner 23992 | -2/Protoforge | Destroyed 15 combat bots 23999 | -2/Protoforge | Lost 3 allies 23999 | -2/Protoforge | UFD reported confirmed Drillbomb installation 24055 | -2/Protoforge | Spotted Striker 24055 | -2/Protoforge | Spotted Executioner 24060 | -2/Protoforge | Spotted Executioner 24061 | -2/Protoforge | Destroyed Executioner 24063 | -2/Protoforge | Spotted Executioner 24066 | -2/Protoforge | Destroyed Striker 24068 | -2/Protoforge | Spotted Striker 24074 | -2/Protoforge | Destroyed Executioner 24109 | -2/Protoforge | Destroyed 10 combat bots 24117 | -2/Protoforge | Lost 4 allies 24143 | -2/Protoforge | Spotted Striker 24143 | -2/Protoforge | Destroyed Executioner 24146 | -2/Protoforge | Destroyed Striker 24151 | -2/Protoforge | Destroyed Striker 24154 | -2/Protoforge | Destroyed Striker 24170 | -2/Protoforge | Destroyed Executioner 24172 | -2/Protoforge | Spotted Executioner 24173 | -2/Protoforge | Destroyed Executioner 24194 | -2/Protoforge | Destroyed 16 combat bots 24241 | -2/Protoforge | Destroyed Executioner 24245 | -2/Protoforge | Spotted Executioner 24245 | -2/Protoforge | Spotted Striker 24245 | -2/Protoforge | Spotted Striker 24247 | -2/Protoforge | Destroyed Striker 24252 | -2/Protoforge | Destroyed Executioner 24252 | -2/Protoforge | Destroyed Striker 24268 | -2/Protoforge | Destroyed Striker 24269 | -2/Protoforge | Spotted Striker 24273 | -2/Protoforge | Destroyed Striker 24294 | -2/Protoforge | Destroyed 17 combat bots 24324 | -2/Protoforge | UFD reported confirmed Drillbomb installation 24325 | -2/Protoforge | UFD began Drillbomb countdown 24425 | *** | Defending 0bPrime! Last Messages --------------- into Forge Plexus. 24415_ 0bP_NET: T-10 until detonation, we won! 24416_ 0bP_NET: Not to be a pessimist, but you all realize we still have to deal with that big fortress thing, yeah? 24417_ 0bP_NET: All while quickly harvesting the forge for new prototypes. 24418_ 0bP_NET: And the imminent need to use that advantage to take full control of 0b1... 24419_ 0bP_NET: Tall orders all around! 24420_ 0bP_NET: Your pep talk needs some work. 24421_ 0bP_NET: Shut your pi-hole, I'm just being a realist. 24422_ 0bP_NET: Things are about to get real, indeed. T-3! 24423_ 0bP_NET: First dibs on the next iteration of our Scrapsuit! 24424_ 0bP_NET: Ha, who wants more upgrades to that old thing, the proto-powered Scrap Engine is where it's at. Map ----- +----------------------------------------------------+ | """ " """ "" " % " """ "# | | """" " " "" "" "" "# | | " """ " # | | " " " " """ " "# | | " " " " "" # | | """"""""" " " % | | """"""""""""""" " " %%% " + | | """"""""""""""""" " "%" %" # | | """"""""""""""""""" "" "% "" "# | | """""""""""""""""""" %%" % "#" " | | """"""""""""""""""""" "" " "#"" "" | | """""""""""""""""""""" " " " "###"F ""## | | """"""""""""""""""""""" %" """ " "###"""""## | | """"""""""""""""""""""" ss% """ " "###"""""## | | """"""""""""""""""""""" %" " "" "########## | | """"""""""""""""""""""""% s" " "########## | | """""""""""""""""""""""" " " "" "" " "########## | | """"""""""""""""""""""""s% " " "########## | | """"""""""""""""""""""""%% #####????? | | """""""""""""""""""""""" ""% #####????? | | """"""""""""""""""""""""% "" % #####????? | | """""""""""""""""""""""" % % " ####????? | | """"""""""""""""""""""""3" "" "" ####????? | | """"""""""""""""""""""""%% "" " #####????? | | """"""""""""""""""""""" "" " " "#####????? | | """"""""""""""""""""""" "@" " #####????? | | """"""""""""""""""""""" "" """ #####????? | | """""""""""""""""""""" " " ####?????? | | """"""""""""""""""""" "" " " "" ####?????? | | """""""""""""""""""" " " """" ####?????? | | """""""""""""""""""SS " " " """ ####?????? | | """"""""""""""""" SS " " "" ####?????? | | %"""""""""""""""SS s " E" ####?????? | | """"""""" SSs s "" ######???? | | sssjs s E"" """ ########?? | | """"" s s "" %""" ########?? | | "%s s " %""" ########?? | | """ """ "" <&######?? | | "" """ "" TT !!&& ####?? | | """" " TT "& ####?? | | " " " " """" &&[######? | | % % " "" " "" &&&% #####? | | % % """" " "" "" "" !&& #####? | | """ "" """ " " " "" !### ####? | | " %%" % """" "" " #### ####? | | " " #########? | | """ """"" """ #########? | | " " """ """ #########? | | """""""""" " " " """""""#########? | | ###########################+++##############?????? | +----------------------------------------------------+ Best States ------------- Heat Dissipation 84 Energy Generation 71 Energy Capacity 960 Matter Stores 550 Matter Capacity 550 Sight Range 20 Robot Scan Range 20 Terrain Scan Density 10 Cloak Strength 2 Power Amplification 30 Corruption Block 20 Armor Coverage 800 Resistance: KI 65 Resistance: TH 50 Resistance: EX 45 Resistance: EM 35 Resistance: I 35 Resistance: S 35 Resistance: P 35 Weapon Cycling 25 Evasion (%) 60 Targeting Accuracy 12 Target Analysis 6 Core Analysis 8 Armor Integrity Analysis 50 Recoil Reduction 99 Matter Filtering 50 Kinecelleration 30 Offensive Hacking 25 Item Schematics ----------------- Force Booster | -9/Recycling | Hacked Hvy. Flail | -9/Recycling | Hacked Combat Drone Bay | -6/Data Miner | Free Lgt. Regenerative Plating | -6/Data Miner | Free Enh. Armored Leg | -6/Data Miner | Free Imp. Matter Compressor | -6/Data Miner | Free Hvy. Gatling Laser | -6/Data Miner | Free Shield Leg | -6/Data Miner | Free Imp. Point Defense System | -6/Data Miner | Free Hvy. Gauss Cannon | -6/Data Miner | Free Assault Drone Bay | -5/Zhirov | Free Exp. Heat Sink | -5/Zhirov | Free Exp. Optical Array | -5/Zhirov | Free Imp. Arc Thrower | -5/Zhirov | Free Corruption Screen | -4/Factory | Hacked Exp. Energy Well | -3/Testing | Archive Thunder Hammer | -3/Testing | Archive Cld. Antigrav System | -3/Testing | Archive Com. Particle Reactor | -3/Testing | Archive Imp. Thermal Defense Suite | -3/Testing | Archive Centrium Heavy Armor Plating | -3/Testing | Archive Cld. Phase Cannon | -2/Protoforge | Archive Point Singularity Launcher | -2/Protoforge | Archive Plasma Sword | -2/Protoforge | Archive Robot Schematics ------------------ G-50 Soldier | -6/Data Miner | Free R-10 Processor | -6/Data Miner | Free D-63 Destroyer | -6/Data Miner | Free B-60 Warrior | -6/Data Miner | Free E-15 Imp | -6/Data Miner | Free L-61 Swordsman | -6/Data Miner | Free A-15 Conveyor | -2/Protoforge | Archive Fabricated ------------ Enh. Armored Leg | x1 | -5/Factory Enh. Armored Leg | x1 | -5/Factory G-67 Veteran | x3 | -2/Research | Preloaded Cld. Antigrav System | x1 | -2/Protoforge X-87 Electro | x2 | -2/Protoforge | Preloaded Repaired ---------- Nothing Alien Tech Used ----------------- Integrated Dissipator Sigix Broadsword Achievements -------------- Gunslinger Challenges ------------ None RPGLIKE | -11 -10 -10 -9 -9 -6 -6 -6 -6 -5 -5 -5 -5 -5 -4 -4 -4 -4 -4 -3 -3 -2 -2 -2 --------- Run | Yrd Mat Sub Rec Scr Fac Low Low Dat Pro Fac Upp Upp Zhi Pro Fac Ext Cet Arc Res Tes Res Qua Frg Levels Raised 35 | . . 2 1 1 10 1 . 1 1 3 . . 1 2 1 . 1 . 1 1 2 1 5 XP Earned 59200 | 6000 1380 1700 2294 900 14957 1650 750 604 1400 5334 244 244 294 2923 1378 1323 613 244 1970 1618 2769 978 7633 XP Spent 57605 | 5250 . 3050 2200 1500 14985 1450 65 . 2600 4275 . . 1375 2195 2900 . 1400 . 1650 . 4600 1100 7010 Upgrades 95 | 8 . 6 4 1 26 4 1 . 1 12 . . 4 4 3 . 1 . 3 . 5 1 11 Power Slot 2 | . . . . . 2 . . . . . . . . . . . . . . . . . . Propulsion Slot 5 | 1 . 1 . . 1 . . . . . . . . . . . 1 . . . 1 . . Utility Slot 9 | 1 . 2 1 . 3 . . . 1 1 . . . . . . . . . . . . . Weapon Slot 3 | 1 . . . . . . . . . . . . . . . . . . 1 . . 1 . Core Integrity 24 | . . . . . 4 . 1 . . 11 . . . . . . . . . . . . 8 Heat Dissipation 2 | . . 1 . . . . . . . . . . . 1 . . . . . . . . . Energy Generation 2 | . . . . . . . . . . . . . . . . . . . 2 . . . . Mass Support 4 | . . . 1 . . . . . . . . . 1 1 1 . . . . . . . . Inventory Capacity 9 | 5 . . . 1 1 . . . . . . . . . . . . . . . . . 2 Sight Range 4 | . . . . . 1 . . . . . . . 1 . . . . . . . 2 . . Sensor Range 10 | . . . . . 7 . . . . . . . 2 1 . . . . . . . . . Ranged Accuracy 7 | . . . . . 2 . . . . . . . . . 2 . . . . . 2 . 1 Hack Attack % 1 | . . . . . 1 . . . . . . . . . . . . . . . . . . KI Resistance % 4 | . . 1 1 . . 1 . . . . . . . 1 . . . . . . . . . TH Resistance % 3 | . . 1 1 . . 1 . . . . . . . . . . . . . . . . . EX Resistance % 2 | . . . . . . 2 . . . . . . . . . . . . . . . . . KI Damage % 4 | . . . . . 4 . . . . . . . . . . . . . . . . . . Protomatter Created 16782 | . 108 153 105 . 212 190 79 . 54 950 . . . 687 85 498 146 180 37 436 34 42 12786 Integrity Restored 13668 | . 141 400 190 . 472 298 26 . 146 1755 . . . 291 166 384 32 38 81 149 . 126 8973 Core 9375 | . 94 276 72 . 344 114 20 . 97 1463 . . . 126 84 273 18 31 53 69 . 126 6115 Parts 4293 | . 47 124 118 . 128 184 6 . 49 292 . . . 165 82 111 14 7 28 80 . . 2858 Protomatter Decayed 10563 | . 58 9 37 . . 15 169 . . 149 . . . 570 139 380 211 234 82 638 77 . 7795 Game ------ Seed FocalArmorGravjet Manual? 0 Play Time 06:27:02 Cumulative 127.7 hours Start 2025.05.06 @ 19:11:39 End 2025.05.07 @ 23:21:46 Sessions 3 Manual Loads 0 Difficulty Explorer Special Mode Winter2019/RPGLIKE Game No. 28 Rogue 0 Adventurer 0 Explorer 28 Win Type 9 Total 12 Types 5/1/3/0/0/0/0/1/1/1 Lore% 60 Gallery% 51 Achievement% 71 Wizard Run 0 Options --------- Layout 2 ASCII 0 Keyboard 1 Movement Numpad Keybinds 0 Fullscreen 1 Font 24/Smallcaps Map View 50x44 Zoom Use 0% Tactical HUD 1 Map Filters NONE Filters NONE Steam 1 RUN: 8eb9a937-0aeb-4599-b6d3-4c80a663f4b5